Workbook

Sheet Cover Page
D1: Add company logo
K2: Template version 25.1a (for incinerators) - 27/11/25
K4: Note that there is another version of this template available for co-incinerators
B8: Add photo
K13: Notes:
K14: This template may require adjustments by individual operators to meet specific reporting requirements as defined in the site Permit(s)
B29: Annual Performance Report 2025
B31: EPR/NP3739PD/V010
B33: The CSWDC Waste to Energy Plant
B35: The Coventry and Solihull Waste Disposal Company Limited
B37: CSWDC
B39: Year: | C39: 2025
B41: Address: | C41: Bar Road, Coventry CV3 4AN
B43: Tel: | C43: 02476 6507400
B45: Email: | C45: info@cswdc.co.uk
B47: Prepared by: | C47: C Mitcheson | F47: Position: | G47: EHS Advisor
B49: Approved by: | C49: E Price | F49: Position: | G49: C&P Manager
B51: Version: | C51: 1
B53: Issue Date: | C53: 2026-02-10

Sheet Facility Info
A1: =+'Cover Page'!$B$29 -> Annual Performance Report 2025 | E1: =+'Cover Page'!$B$33 -> The CSWDC Waste to Energy Plant
A3: Plant Description and Design | K3: Notes:
A5: The Waste to Energy plant, which is located at Bar Road in Coventry, processes Municipal Household waste arising in the City of Coventry and the neighbouring borough of Solihull. Municipal household waste from other nearby local authorities is also processed at the plant. The plant is operated by The Coventry and Solihull Waste Disposal Company Ltd. The main activity at the installation is thermal treatment of municipal waste and recovery of energy, in the form of heat which is converted to electricity for export to the grid. The installation also has the capability to export heat in the form of either High or Low Pressure steam to a district heating scheme operated by Bring Energy (formally Engie). A limited amount of hazardous waste, containing less than 1% halogenated organic substances (as chlorine), is also burned with the municipal waste. The installation includes waste receipt and storage, steam generation boilers, abatement of the exhaust gas, on-site storage of residues and all systems for controlling and monitoring combustion operation. The steam produced is used to drive 2 steam turbine driven generators. The plant design is capable of processing approximately 315,000 tonnes of waste per annum/36 tonnes per hour in three combustion units (12 tonne per unit). The heat produced is used to generate 17.7MW of electricity and up to 16MW heat energy. Refuse collection vehicles enter the reception hall and deposit their waste into a storage bunker. The material is then loaded by crane into each of the combustion units via feed hoppers from the storage bunker. After entering the combustion chamber via the refuse feed ram the material is allowed to fall onto the grate in a controlled manner. The moving grate mechanisms are used to agitate the waste as it progresses down to the ash discharge. As the waste moves along, pre-heated primary air is introduced from beneath the grate enabling the waste to go through a series of drying and burning areas. Secondary air is introduced from above the grate for combustion control. Auxiliary gas fired burners are located in the combustion chamber both to heat it up on start-up and to maintain the final gas temperature if necessary. The hot gases are maintained at a minimum temperature of 850 degrees C for 2 seconds in the combustion chamber before passing to the boiler, economiser and abatement plant. Each combustion unit is equipped with a 3-bank water tube boiler, raising steam at 17 bar and 208 degrees C. Economisers are fitted downstream of each combustion unit to pre-heat the incoming feed water. Combustion is controlled with the use of an infrared imaging computer system, which uses fuzzy logic systems to control various parameters of the plant, ensuring improved efficiency and emission performance when compared to fully manual control. Each combustion unit is provided with its own gas cleaning and monitoring equipment. Gas cleaning comprises activated carbon injection, then dry scrubbing with hydrated lime. The gases pass through bag filters to remove particulates prior to discharge to atmosphere via a single 92m stack. NOx control is achieved by Selective Non Catalytic Reduction (SNCR) using ammonium hydroxide injection. Emissions from the stack are continuously monitored for particulates, carbon monoxide (CO), sulphur dioxide (SO2), hydrogen chloride (HCl), oxygen (O2), nitrogen oxides (NOx) and volatile organic compounds (VOC). There is no discharge of process liquids to controlled waters. Uncontaminated surface and roof waters are discharged to the surface water drainage system, via penstock equipped interceptors. All process waste waters are discharged to foul sewer and these are treated at Finham Sewage Treatment Works, which is operated by Severn Trent Water. Bottom ash and metal content from the combustion unit grate is quenched with water. Both fractions are then conveyed to individual concrete storage bunkers prior to removal for reprocessing into aggregates or for recycling back into the steel industry. Air Pollution Control Residues (APCR) from the bag filters are collected continuously and stored in an enclosed silo prior to removal from site for disposal. | K5: Include summary of plant design, design capacity, no. of combustion lines, electrical and heat capacity and any other general information that describes the facility, its location and purpose
A20: Summary of Operational Processes and Procedures
A22: The plant consists of three separate combustion units that process up to a maximum of 12 tonnes of waste per hour. There are two steam turbine driven electrical generating sets on the plant which convert the heat energy recovered from the combustion process into electricity. The generating sets are designated as G1 and G2. G1 has a capacity of 12.9MW and G2 a capacity of 4.8 MW. The process energy requirements are taken from the electricity generated and the surplus is exported to the grid. The plant also has the capacity to export heat, in the form of high pressure and low pressure steam. The following table categorises the types of wastes processed. EWC Code and Description 02 03 04 materials unsuitable for consumption or processing 03 01 04* sawdust, shavings, cuttings, wood, particle board and veneer containing hazardous substances (Oily and wood/veneer hazardous waste) 13 07 01* fuel oil and diesel (Oily and wood/veneer hazardous waste) 13 08 99* wastes not otherwise specified (Oily and wood/veneer hazardous waste) 15 02 02* absorbents, filter materials (including oil filters not otherwise specified), wiping cloths, protective clothing contaminated by hazardous substances (Oily and wood/veneer hazardous waste) 15 02 03 absorbents, filter materials, wiping cloths and protective clothing other than those mentioned in 15 02 02 (Oily and wood/veneer hazardous waste) 16 07 08* wastes containing oil (Oily and wood/veneer hazardous waste) 18 01 04 wastes whose collection and disposal is not subject to special requirements in order to prevent infection (for example dressings, plaster casts, linen, disposable clothing, diapers) 18 01 06* chemicals consisting of or containing hazardous substances 18 01 07 chemicals other than those mentioned in 18 01 06 18 01 09 medicines other than those mentioned in 18 01 08 19 01 99 wastes not otherwise specified 19 12 01 paper and cardboard 19 12 08 textiles 19 12 10 combustible waste (refuse derived fuel) 19 12 12 other wastes (including mixtures of materials) from mechanical treatment of wastes other than those mentioned in 19 12 11 20 01 01 paper and cardboard 20 01 08 biodegradable kitchen and canteen waste 20 01 11 textiles 20 02 01 biodegradable waste 20 03 01 mixed municipal waste 20 03 02 waste from markets 20 03 07 bulky waste 20 03 99 municipal wastes not otherwise specified | K22: Include summary of key processes and procedures such as (but not limited to); waste reception, control rooms, grate, bed and boiler, energy & heat generation, cooling systems, residue management, emission controls, health and safety systems, maintenance

Sheet Operational Data
A1: =+'Cover Page'!$B$29 -> Annual Performance Report 2025 | E1: =+'Cover Page'!$B$33 -> The CSWDC Waste to Energy Plant
A3: Operational Data
A4: Plant Size: | B4: 315000 | D4: tonnes pa | J4: Notes:
A5: Nominal net thermal input: | B5: 77 | C5: MWth | J5: * Export capacity = nominal generation capacity at the generator terminals minus nominal parasitic load. ** CHP and district heating plants only - put N/A if no heat export. *** Combusted tonnage = tonnes delivered in period + (tonnes in bunker at start of period – tonnes in bunker at end of period), or equivalent calculation depending on plant type **** Availability Definition: The availability of a line is to be calculated by the number of hours the line reported Continuously Monitored emission levels to the Regulator through the calendar year divided by the total number of hours in that year. The overall plant availability is calculated as the mean of all lines in the plant. For clarity this includes periods of abnormal operation. Rationale: The primary function of an Energy from Waste facility is the disposal of waste. It follows therefore that the availability of a plant is determined by the period of time a facility spends undertaking this activity. *****NCV of waste: This should be completed for all plants which have a boiler. Calculate using total thermal power produced by boiler/boiler efficiency, or other suitable calculation.
A6: Nominal electrical export capacity*: | B6: 17.7 | C6: MWe
A7: Nominal heat export capacity**: | B7: 16 | C7: MWth
A8: No. of combustion lines: | B8: 3 | C8: No. of steam turbines: | E8: 2
A10: Waste types received | B10: Unit | C10: Q1 | D10: Q2 | E10: Q3 | F10: Q4 | G10: Year Total | H10: %
A11: Household / Local Authority | B11: tonnes | C11: 76867.74 | D11: 70622.04 | E11: 67845.8 | F11: 74996.9 | G11: =SUM(C11:F11) -> 290332.48 | H11: =IF(G11>0,G11/$G$21,"-") -> 1
A12: Commercial & Industrial | C12: 0 | D12: 0 | E12: 0 | F12: 0 | G12: =SUM(C12:F12) -> 0 | H12: -
A13: Hazardous | C13: 0 | D13: 0 | E13: 0 | F13: 0 | G13: 0 | H13: -
A14: Clinical | C14: 0 | D14: 0 | E14: 0 | F14: 0 | G14: 0 | H14: -
A15: Waste wood (biomass) | G15: 0 | H15: -
A16: Refuse Derived Fuel (incl. SRF) - H'hold/LA | G16: =SUM(C16:F16) -> 0 | H16: -
A17: Refuse Derived Fuel (incl. SRF) - C&I | G17: 0 | H17: -
A18: Other [Please specify] | G18: 0 | H18: -
A19: Other [Please specify] | G19: 0 | H19: -
A20: Other [Please specify] | G20: 0 | H20: -
A21: Total waste received | C21: =SUM(C11:C20) -> 76867.74 | D21: =SUM(D11:D20) -> 70622.04 | E21: =SUM(E11:E20) -> 67845.8 | F21: =SUM(F11:F20) -> 74996.9 | G21: 290332.48
A22: Rejected Waste | G22: =SUM(C22:F22) -> 0 | H22: =IF(G22>0,G22/$G$21,"-") -> -
A23: Unprocessed waste transferred out | G23: =SUM(C23:F23) -> 0 | H23: =IF(G23>0,G23/$G$21,"-") -> -
A24: Total waste combusted *** | C24: =C21 -> 76867.74 | D24: =D21 -> 70622.04 | E24: 67845.8 | F24: 74996.9 | G24: =SUM(C24:F24) -> 290332.48
A26: Energy Usage / Export | B26: Unit | C26: Q1 | D26: Q2 | E26: Q3 | F26: Q4 | G26: Year Total | H26: KWh/te | J26: Password for protected cells A password has been set to prevent accidental editing of cells with formulae. If you still need to make an edit for some reason then the password = 1234
A27: Power generated at generator terminals | B27: MWh | C27: 8175.4 | D27: 29272.11 | E27: 30180.4 | F27: 29713.46 | G27: =SUM(C27:F27) -> 97341.37 | H27: =IF(G27>0,G27*1000/$G$24,"-") -> 335.275509
A28: Power exported to grid and other external user(s) | C28: 3861 | D28: 15567 | E28: 18249 | F28: 18039 | G28: =SUM(C28:F28) -> 55716 | H28: =IF(G28>0,G28*1000/$G$24,"-") -> 191.9041232
A29: Power imported | C29: 95 | D29: 83 | E29: 371 | F29: 1273 | G29: 1822 | H29: =IF(G29>0,G29*1000/$G$24,"-") -> 6.275563795
A30: Indicative parasitic load | B30: % | C30: =IF(C27>0,(C27-C28)/C27,"-") -> 0.5277295301 | D30: =IF(D27>0,(D27-D28)/D27,"-") -> 0.4681968604 | E30: 0.3953360459 | F30: 0.3929013989 | G30: =IF(G27>0,1-G28/(G27+G29),"-") -> 0.4381393049
A31: Thermal Energy Exported ** | C31: 3801 | D31: 3080 | E31: 2360 | F31: 3083 | G31: =SUM(C31:F31) -> 12324 | H31: =IF(G31>0,G31*1000/$G$24,"-") -> 42.44788595
A32: R1 value (if applicable) | B32: R1 | C32: - | D32: - | E32: - | F32: -
A34: Waste Disposal & Recovery | B34: Unit | C34: Q1 | D34: Q2 | E34: Q3 | F34: Q4 | G34: Year Total | H34: % inputs
A35: APC Residues - produced | B35: tonnes | C35: 3371 | D35: 3022 | E35: 3101 | F35: 3016 | G35: =SUM(C35:F35) -> 12510 | H35: =IF(G35>0,G35/$G$24,"-") -> 0.04308853078
A36: IBA - produced | C36: 11113 | D36: 11228 | E36: 10643 | F36: 10508 | G36: 43492 | H36: =IF(G36>0,G36/$G$24,"-") -> 0.1498006699
A37: Metals recycling | C37: 1303 | D37: 1196 | E37: 1150 | F37: 1268 | G37: =SUM(C37:F37) -> 4917 | H37: 0.01693575586
A38: Other | C38: 0 | D38: 0 | E38: 0 | F38: 0 | G38: =SUM(C38:F38) -> 0 | H38: -
A39: Other | C39: 0 | D39: 0 | E39: 0 | F39: 0 | G39: 0 | H39: -
A40: Other | C40: 0 | D40: 0 | E40: 0 | F40: 0 | G40: 0 | H40: -
A42: Raw Material Usage | B42: Unit | C42: Q1 | D42: Q2 | E42: Q3 | F42: Q4 | G42: Year Total | H42: Qty./te
A43: Mains Water | B43: ltrs | C43: 30673000 | D43: 55182000 | E43: 109550000 | F43: 49559315 | G43: =SUM(C43:F43) -> 244964315 | H43: =IF(G43>0,G43/$G$24,"-") -> 843.7372043
A44: Other Water | B44: ltrs | C44: 0 | D44: 36869000 | E44: 5654000 | F44: 59995000 | G44: 102518000 | H44: =IF(G44>0,G44/$G$24,"-") -> 353.1055154
A45: Ammonia | B45: kgs | C45: 323000 | D45: 391000 | E45: 415000 | F45: 298000 | G45: 1427000 | H45: 4.91505463
A46: Urea | B46: kgs | C46: 0 | D46: 0 | E46: 0 | F46: 0 | G46: =SUM(C46:F46) -> 0 | H46: -
A47: Activated Carbon | B47: kgs | C47: 21540 | D47: 23080 | E47: 24340 | F47: 21600 | G47: 90560 | H47: 0.3119182532
A48: Lime / hydrated lime | B48: kgs | C48: 1710000 | D48: 1413600 | E48: 1489000 | F48: 1270780 | G48: 5883380 | H48: 20.26428459
A49: Fuel oil | B49: ltrs | C49: 5250 | D49: 13448 | E49: 9450 | F49: 7590 | G49: 35738 | H49: 0.1230933583
A50: Gas | B50: m3 | C50: 219984 | D50: 165928 | E50: 89367 | F50: 183487 | G50: 658766 | H50: 2.269005521
A51: Other | G51: 0 | H51: -
A53: Summary | B53: Line/Unit | C53: Q1 | D53: Q2 | E53: Q3 | F53: Q4 | G53: Year Total | I53: Hrs in year
A54: Availability of waste combustion by line, hrs **** | B54: 1 | C54: 1891 | D54: 1747 | E54: 1829 | F54: 2023 | G54: =SUM(C54:F54) -> 7490 | H54: =+G54/$I$54 -> 0.8550228311 | I54: 8760 | J54: Change this figure to 8784 in a leap year
B55: 2 | C55: 2141 | D55: 1997 | E55: 1831 | F55: 1949 | G55: 7918 | H55: =+G55/$I$54 -> 0.9038812785
B56: 3 | C56: 2106 | D56: 1905 | E56: 1854 | F56: 1863 | G56: 7728 | H56: 0.8821917808
B57: 4 | G57: =SUM(C57:F57) -> 0 | H57: 0
B58: 5 | G58: =SUM(C58:F58) -> 0 | H58: 0
A59: Hours of turbine operations, hrs | B59: 1 | C59: 0 | D59: 188.3 | E59: 250.3 | F59: 226.7 | G59: 665.3 | H59: 0.07594748858
A60: Hours of turbine operations, hrs | B60: 2 | C60: 294 | D60: 262.1 | E60: 154 | F60: 93 | G60: 803.1 | H60: 0.09167808219
A61: Hours of heat / steam export** | B61: hours | C61: =SUM(C59:C60) -> 294 | D61: =SUM(D59:D60) -> 450.4 | E61: 404.3 | F61: 319.7 | G61: 1468.4 | H61: =IF(B61>0,G60/I54,"n/a") -> 0.09167808219
A62: Net calorific value of waste***** | B62: MJ/kg | C62: 8.69 | D62: 8.69 | E62: 8.69 | F62: 8.69
A63: Abnormal operation events | B63: qty. | C63: 1 | D63: 0 | E63: 0 | F63: 0 | G63: 1 | H63: =IF(G63>0,"yes","no") -> yes
A64: Abnormal operation duration | B64: hours | C64: 0.5 | D64: 0 | E64: 0 | F64: 0 | G64: 0.5 | H64: =+(G64)/I54 -> 5.707762557e-05
A65: Permit Breaches | B65: qty. | C65: 0 | D65: 0 | E65: 0 | F65: 0 | G65: 0 | H65: =IF(G65>0,"yes","no") -> no

Sheet Operational Summary
A1: =+'Cover Page'!$B$29 -> Annual Performance Report 2025 | E1: =+'Cover Page'!$B$33 -> The CSWDC Waste to Energy Plant
A3: Summary of Plant Operations and Maintenance during the reporting year | K3: Notes:
A5: Units 1 and 3 have two minor outages during the year. Unit 2 has a minor and a major outage. There was also a Total plan outage. Explosive cleaning took place on units 2 and 3 each month with Unit 1 also having explosive cleaning prior to each outage. Repairs to the main turbine (G1) were completed in September 2025. The turbine was operational from April on a reduced load. G2 had a major service. | K5: Include summary of key operational and/or maintenance activity undertaken in the year, such as any major component upgrades and/or replacements
A29: =+'Cover Page'!C39 -> 2025 | B29: Plant shut-downs
A30: Start date | B30: End date | C30: Reason for shut-down | K30: Provide a very brief reason for plant shut-down e.g. "Shut-down prior to major outage"; "Emergency shut-down due to boiler tube leak". All emergency shut-downs must be listed (irrespective of whether or not they were required to be reported to the EA). There is no need to include periods of hot-standby here (e.g. to clear feed chute hopper blockages). For clinical waste incinerators which require regular shut-downs for boiler cleaning, there is no need to record these here (only those prior to major outages, and emergency shut-downs).
A31: 2025-01-04 | B31: 2025-01-07 | C31: Unit 1 - Grate Repairs following explosion
A32: 2025-01-10 | B32: 2025-01-11 | C32: Unit 1 - Boiler wall explosion damage repairs
A33: 2025-01-17 | B33: 2025-01-19 | C33: Unit 1 - Grate Repairs following explosion
A34: 2025-01-06 | B34: 2025-01-08 | C34: Unit 3 - Grate Repairs following explosion
A35: 2025-01-16 | B35: 2025-01-16 | C35: Unit 3 - Feed chute blockage
A36: 2025-02-07 | B36: 2025-02-08 | C36: Unit 1 - Grate Repairs following explosion
A37: 2025-02-14 | B37: 2025-02-17 | C37: Unit 1 - Boiler Tube Repairs
A38: 2025-02-22 | B38: 2025-02-22 | C38: Unit 1 - Bag Filter Issues
A39: 2026-02-11 | B39: 2025-02-11 | C39: Unit 3 - Booster Pump
A40: 2025-03-17 | B40: 2025-03-17 | C40: Unit 1 - Insufficient lime stock
A41: 2025-04-01 | B41: 2025-04-08 | C41: Unit 1 - Planned Outage
A42: 2025-04-09 | B42: 2025-04-11 | C42: Unit 1 - Feed table repair issues
A43: 2025-04-26 | B43: 2025-04-27 | C43: Unit 1 - Oil Leak on grate cylinder
A44: 2025-04-09 | B44: 2025-04-16 | C44: Unit 2 - Planned Outage
A45: 2025-04-13 | B45: 2025-04-13 | C45: Unit 3 - Hydraulic Pack Issues
A46: 2025-04-24 | B46: 2025-04-24 | C46: Unit 3 - Grate issues
A47: 2025-04-25 | B47: 2025-04-25 | C47: Unit 3 - Lime silo conveyer blockage
A48: 2025-05-03 | B48: 2025-05-03 | C48: Unit 1 - FD Fan Issue
A49: 2025-05-07 | B49: 2025-05-07 | C49: Unit 1 - FD Fan Issue
A50: 2025-05-15 | B50: 2025-05-15 | C50: Unit 1 - Repairs to FD Fan and B Burner
A51: 2025-06-11 | B51: 2025-06-14 | C51: Unit 1 - Decliner and Burner Repairs
A52: 2025-06-19 | B52: 2025-06-21 | C52: Unit 1 - Tube Leak Repairs
A53: 2025-06-04 | B53: 2025-06-04 | C53: Unit 2 - B Side Grate Issues
A54: 2025-06-03 | B54: 2025-06-13 | C54: Unit 3 - Planned Outage
A55: 2025-07-31 | B55: 2025-07-31 | C55: Unit 3 - Grate cylinder failure and replacement
A56: 2025-08-08 | B56: 2025-08-08 | C56: Unit 1 - Generation Bank water leak
A57: 2025-08-15 | B57: 2025-08-16 | C57: Unit 2 - Grate Hydraulic Repair
A58: 2025-08-01 | B58: 2025-08-01 | C58: Unit 3 - Grate Cylinder failure and replacement
A59: 2025-08-29 | B59: 2025-08-29 | C59: Unit 3 - Blockage between clinker roller and ash discharger
A60: 2025-09-04 | B60: 2025-09-04 | C60: Unit 1 - Grate 'B' Cylinder Issue
A61: 2025-09-16 | B61: 2025-10-04 | C61: Unit 1 - Plannd Outage
A62: 2025-09-16 | B62: 2025-10-12 | C62: Unit 2 - Planned Outage
A63: 2025-09-16 | B63: 2025-09-29 | C63: Unit 3 - Planned Outage
A64: 2025-10-06 | B64: 2025-10-13 | C64: Unit 1 - Tube Failure and Repair
A65: 2025-10-11 | B65: 2025-10-11 | C65: Unit 1 - No cranes available
A66: 2025-10-04 | B66: 2025-10-05 | C66: Unit 3 - CO Issues
A67: 2025-10-08 | B67: 2025-10-12 | C67: Unit 3 - Tube Leak and Repair
A68: 2025-11-01 | B68: 2025-11-01 | C68: Unit 3 - Power Surge
A69: 2025-11-11 | B69: 2025-11-11 | C69: Unit 3 - Hydraulic Pack Issues
A70: 2025-11-18 | B70: 2025-11-26 | C70: Unit 3 - Planned Outage
A71: 2025-12-16 | B71: 2025-12-16 | C71: Unit 1 - Grate Cylinder Replacement
A72: 2025-12-11 | B72: 2025-12-11 | C72: Unit 3 - Drum Safety Valve Reset

Sheet Perf. Form 1
A1: =+'Cover Page'!C39 -> 2025 | B1: Annual Reporting Performance Form 1
A3: =+'Cover Page'!B31 -> EPR/NP3739PD/V010 | F3: Operator: | G3: =+'Cover Page'!B37 -> CSWDC
A4: Facility: | B4: =+'Cover Page'!B33:I33 -> The CSWDC Waste to Energy Plant | F4: Form: | G4: Performance 1
A6: Reporting Period from: | D6: 2025-01-01 | F6: to: | G6: 2025-12-31
A8: =+A1 -> 2025 | B8: Annual Reporting of Waste Disposal and Recovery
A9: Waste Description | C9: Disposal Route(s) | E9: Disposal Tonnes | G9: Recovery Tonnes | I9: % / tonne of waste incinerated
A10: 1) Hazardous Wastes
A11: APC Residues | C11: Pretreated and landfill | E11: ='Operational Data'!G35 -> 12510 | I11: =IF((E11+G11)>0,(E11+G11)/'Operational Data'!$G$24, "-") -> 0.04308853078
I12: =IF((E12+G12)>0,(E12+G12)/'Operational Data'!$G$24, "-") -> -
I13: =IF((E13+G13)>0,(E13+G13)/'Operational Data'!$G$24, "-") -> -
I14: =IF((E14+G14)>0,(E14+G14)/'Operational Data'!$G$24, "-") -> -
A15: Total Hazardous Waste | E15: =SUM(E11:F14) -> 12510 | G15: =SUM(G11:H14) -> 0 | I15: =IF((E15+G15)>0,(E15+G15)/'Operational Data'!$G$24, "-") -> 0.04308853078
A17: 2) Non-Hazardous Wastes
A18: IBA | C18: Recovery | E18: ='Operational Data'!G36 -> 43492 | I18: =IF((E18+G18)>0,(E18+G18)/'Operational Data'!$G$24, "-") -> 0.1498006699
A19: Ferrous Metal | C19: Recovery | E19: ='Operational Data'!G37 -> 4917 | I19: =IF((E19+G19)>0,(E19+G19)/'Operational Data'!$G$24, "-") -> 0.01693575586
A20: Process Water | C20: Disposal to foul sewer | E20: 107396 | I20: =IF((E20+G20)>0,(E20+G20)/'Operational Data'!$G$24, "-") -> 0.3699069426
I21: =IF((E21+G21)>0,(E21+G21)/'Operational Data'!$G$24, "-") -> -
I22: =IF((E22+G22)>0,(E22+G22)/'Operational Data'!$G$24, "-") -> -
A23: Total Non-Hazardous Waste | E23: =SUM(E18:F22) -> 155805 | G23: =SUM(G18:H22) -> 0 | I23: =IF((E23+G23)>0,(E23+G23)/'Operational Data'!$G$24, "-") -> 0.5366433683
A24: TOTAL WASTE | E24: =+E23+E15 -> 168315 | G24: =+G23+G15 -> 0 | I24: =IF((E24+G24)>0,(E24+G24)/'Operational Data'!$G$24, "-") -> 0.5797318991
A26: Operator’s comments :
A31: =+A1 -> 2025 | B31: Annual Reporting of Water and Other Raw Material Usage
A32: Raw Material | E32: Usage | G32: Unit | H32: Specific Usage | J32: Unit
A33: Mains Water | E33: =+'Operational Data'!G43/1000 -> 244964.315 | G33: m3 | H33: =IF(E33>0,E33/'Operational Data'!$G$24,"-") -> 0.8437372043 | J33: m3/te
A34: Total Water | E34: =+'Operational Data'!G44+'Operational Data'!G43/1000 -> 102762964.3 | G34: m3 | H34: =IF(E34>0,E34/'Operational Data'!$G$24,"-") -> 353.9492526 | J34: m3/te
A35: Urea / Ammonia | E35: =+'Operational Data'!G45 -> 1427000 | G35: kg | H35: =IF(E35>0,E35/'Operational Data'!$G$24,"-") -> 4.91505463 | J35: kg/te
A36: Activated Carbon | E36: =+'Operational Data'!G47 -> 90560 | G36: kg | H36: =IF(E36>0,E36/'Operational Data'!$G$24,"-") -> 0.3119182532 | J36: kg/te
A37: Lime / hydrated lime / Sodium Bicarb. | E37: =+'Operational Data'!G48 -> 5883380 | G37: kg | H37: =IF(E37>0,E37/'Operational Data'!$G$24,"-") -> 20.26428459 | J37: kg/te
A39: Operator’s comments :
A43: =+A31 -> 2025 | B43: Annual Reporting of other performance indicators
A44: Parameter | C44: Results by Line
C45: A1 | D45: A2 | E45: A3 | F45: A4 | G45: A5 | I45: Turbine 1 | J45: Turbine 2
A46: Operating hours for the year, hours | C46: ='Operational Data'!G54 -> 7490 | D46: ='Operational Data'!G55 -> 7918 | E46: ='Operational Data'!G56 -> 7728 | I46: ='Operational Data'!G59 -> 665.3 | J46: ='Operational Data'!G60 -> 803.1
A47: Number of periods of abnormal operation, qty. | C47: ='Operational Data'!C63 -> 1 | D47: 0 | E47: 0
A48: Cumulative hours of abnormal operation for this year, hours | C48: ='Operational Data'!C64 -> 0.5 | D48: 0 | E48: 0
A50: Operator’s comments :
A54: Signed: | G54: Date: | H54: 2026-02-10

Sheet Energy Form 1
A1: =+'Cover Page'!C39 -> 2025 | B1: Annual Reporting of Energy Usage/Export
A3: =+'Cover Page'!B31 -> EPR/NP3739PD/V010 | F3: Operator: | G3: =+'Cover Page'!B37 -> CSWDC
A5: Facility: | B5: =+'Cover Page'!B33:I33 -> The CSWDC Waste to Energy Plant | F5: Form: | G5: Energy 1
A7: Reporting Period from: | D7: =+'Perf. Form 1'!D6:E6 -> 2025-01-01 | F7: to: | G7: =+'Perf. Form 1'!G6:H6 -> 2025-12-31
A9: Energy Source | D9: Energy Usage | F9: Unit | G9: Specific Usage (KWh/tonne incinerated
A10: Electricity Produced | D10: =+'Operational Data'!G27 -> 97341.37 | F10: MWh | G10: =+'Operational Data'!H27 -> 335.275509
A11: Electricity Imported | D11: =+'Operational Data'!G29 -> 1822 | F11: MWh | G11: =+'Operational Data'!H29 -> 6.275563795
A12: Electricity Exported | D12: =+'Operational Data'!G28 -> 55716 | F12: MWh | G12: =+'Operational Data'!H28 -> 191.9041232
A13: Gas Oil | F13: tonnes
A14: Steam/hot water exported | D14: =+'Operational Data'!G31 -> 12324 | F14: GWh | G14: =+'Operational Data'!H31 -> 42.44788595
A18: Operator’s comments :
A19: Please note that the main turbine 'G1' was off line for a proportion of the year due to a catastrophic failure in 2023, therefore the amounts of power produced and exported will be much lower that would normally be expected for the plant capacity. G1 back in service April 2025 and was running at a reduced capacity. G2 was off during December 2025 for a major service.
A29: Signed: | G29: Date: | H29: 2026-02-10

Sheet Permit Compliance
A1: =+'Cover Page'!$B$29 -> Annual Performance Report 2025 | E1: =+'Cover Page'!$B$33 -> The CSWDC Waste to Energy Plant
A3: Summary of Permit Compliance
A5: Compliance with permit limits for continuously monitored pollutants
A7: The plant met its emission limits as shown in the table below:
A8: Substance | C8: Percentage time compliant during operationNote 1 | L8: Notes:
C9: Half-hourly limit | F9: Daily limit | L9: Note 1: Please report to 2 decimal places, i.e. xx.xx% Note 2: Please enter into this table any permit non-compliances that the EA has given a CCS score for. Please also enter any other non-compliances which you have notified to the EA (e.g. ELV exceedances) but which have not yet been assessed by the EA. There is no need to enter any notifications which were subsequently assessed by the EA not to be permit breaches. Note 3: Please enter information here (rather than just referencing the notifications that were sent to the EA) including where relevant the incineration line reference, pollutant and value of the measured result for any ELV exceedances.
A10: Particulates | C10: 1 | F10: 1
A11: Oxides of nitrogen | C11: 1 | F11: 1
A12: Sulphur dioxide | C12: 1 | F12: 1
A13: Carbon monoxide | C13: 100.00% 95% of 10-min averages | F13: 1
A14: Total organic carbon | C14: 1 | F14: 1
A15: Hydrogen chloride | C15: 1 | F15: 1
A16: Hydrogen fluoride | C16: 1 | F16: 1
A17: Ammonia | C17: 1 | F17: 1
A18: .
A19: Summary of non-compliances under the permit Note 2
A20: Date | B20: Summary of non-compliance Note 3 | D20: Reason | G20: Measures taken to prevent reoccurrence | H20: CCS score if applicable*
H21: Impact | I21: Root cause
A27: *If the Environment Agency (EA) has given a Compliance Classification Scheme (CCS) score due to a permit non-compliance it should be entered here (CCS4 = No impact; CCS3 = Minor impact; CCS2 = Significant impact; CCS1 = Major impact). If the EA has not yet assessed a non-compliance which you have notified to them, these columns should be left blank. Enter N/A if no score was given for the root cause.
A29: Summary of any complaints received and actions to taken to resolve them.
A30: Date | B30: Summary of complaint [including Line/Reference] | E30: Reason (including whether substantiated by the operator or the EA) | H30: Measures taken to prevent reoccurrence

Sheet Improvements
A1: =+'Cover Page'!$B$29 -> Annual Performance Report 2025 | E1: =+'Cover Page'!$B$33 -> The CSWDC Waste to Energy Plant
A3: Summary of Plant Improvements
A5: Summary of any efficiency improvements that have been completed within the year.
A6: On-going review and assessment of the abatement dosing chemicals to ensure dosing of consumables is balanced with emissions levels
A16: Summary of any permit improvement conditions that have been completed within the year and the resulting environmental benefits.
A17: Completed IC5 and Submitted IC6
A27: Summary of any changes to the plant or operating techniques which required a variation to the permit and a summary of the resulting environmental impact.
A28: N/A
A38: Summary of any other improvements made to the plant or planned to be made and a summary of the resulting environmental benefits.

Sheet Public Liasion
A1: =+'Cover Page'!$B$29 -> Annual Performance Report 2025 | E1: =+'Cover Page'!$B$33 -> The CSWDC Waste to Energy Plant
A3: Details of Public & Stakeholder Liaison
A5: Summary of events held during the reporting year.
A6: Date | C6: Description
A7: 2025-03-18 | C7: Stratford District Council - site visit and plant tour
A9: 15/05/2025 19/06/2025 19/08/2025 10/09/2055 | C9: Probus - site visits and plant tours
A11: 21/5/026 | C11: Home school - site visit and plant tour
A13: 2025-06-27 | C13: Whittle Promary School -site visit and limited tour
A15: 2025-07-10 | C15: Coventry University - site visit and plant tour
A17: 2025-11-12 | C17: Leicestershire County Council - site visit and plant tour
A20: List of events planned for next year
A21: Date | C21: Description
A22: 2026-02-24 | C22: Statford District Council - site visit and plant tour
A33: If you wish to be involved in the public liaison programme, please contact _________________

Sheet CO2 N2O
A1: =+'Cover Page'!$B$29 -> Annual Performance Report 2025 | C1: =+'Cover Page'!$B$33 -> The CSWDC Waste to Energy Plant
A3: Carbon dioxide emissions and biogenic content of waste inputs | F3: Notes:
A5: Carbon dioxide emissions (all types of plant)
B6: Annual mass of carbon dioxide released | C6: tonnes | D6: 270629.3
B7: Annual mass of carbon dioxide released per tonne of waste burned | C7: t CO2 / t waste | D7: =D6/'Operational Data'!G24 -> 0.9321358051 | F7: Note 1: All permits require operators to continuously monitor CO2 to EN14181 and flow to BS EN 16911-2 (unless otherwise agreed in writing). Operators must therefore use the results from these instruments to calculate their annual CO2 emissions. Where an operator does not have a flow meter calibrated to BS EN 16911-2, the averaged flow measurement from that year's periodic monitoring can be used instead. If the plant does not have calibrated CO2 CEMS, a suitably justified emissions factor can be used.
B8: Annual mass of carbon dioxide released per MWh of energy exported | C8: t CO2 / MWh export | D8: =D6/'Operational Data'!G28 -> 4.857299519
B9: Description of how annual carbon dioxide mass emission has been calculated. See Note 1 | C9: CEMs data used to record CO2 and flow with running hours to produce a mass value for the year
A10: Nitrous oxide emissions (only plants which use ammonia or urea to abate NOx emissions)
B11: Annual mass emissions of nitrous oxide | C11: tonnes N2O | D11: 6.1
B12: Description of how annual nitrous oxide mass emission has been calculated See Note 2 | C12: CEMs data used to record N2O and flow with running hours to produce a mass value for the year | F12: Note 2: All permits require operators to continuously monitor N2O to EN14181 and flow to BS EN 16911-2, unless otherwise agreed in writing. Operators must therefore use the results from these instruments to calculate their annual N2O emissions. Where an operator does not have a flow meter calibrated to BS EN 16911-2, the averaged flow measurement from periodic monitoring can be used instead. If the plant does not have calibrated N2O CEMS, data from periodic monitoring or a suitably justified emissions factor can be used instead.
A13: Total annual carbon dioxide + nitrous oxide emissions. See Note 3. | C13: tonnes CO2e | D13: =(D11*265)+D6 -> 272245.8 | F13: Note 3: Total annual carbon dioxide and nitrous oxide emissions reported as carbon dioxide equivalent where 1 tonne nitrous oxide is equivalent to 265 tonnes carbon dioxide.
A14: Biogenic CO2 emissions (See Note 4) | F14: Note 4: Only plants combusting residual municipal waste, refuse derived fuel or solid recovered fuel need complete this section.
B15: Percentage of total carbon dioxide emissions arising from biogenic waste | C15: % | D15: 0.59
B16: No. of measurements undertaken | C16: Number | D16: 12
B17: Description of how percentage biogenic carbon dioxide emissions have been measured or calculated. See Note 5 | C17: C14 sampling on common exit duct | F17: Note 5: The results from C14 sampling should be used if this is carried out at the plant (either via an installed sampler or from spot samples). Otherwise, as an approximation (and in lieu of any more accurate metrics which may be developed in future), the measured or estimated biogenic fraction by net calorific value (see Note 6) can be assumed to be the same as the biogenic CO2 fraction of the total CO2 emissions from the plant.
A18: Biogenic fraction of waste feedstock (See Note 4)
B19: Yearly average biogenic percentage of the waste by net calorific value (NCV) | C19: % | D19: 0.54
B20: Description of how biogenic percentage (by NCV) has been calculated or estimated. See Note 6 | C20: Using the Fichtner calculation/formula | F20: Note 6: If C14 sampling is carried out at the plant, the methodology set out in the embedded document entitled "Renewable Energy Association Energy Content of Fuels - Description of Method" embedded below can be used to calculate the biogenic percentage by net calorific value. Otherwise, data from waste sampling or BIOMA software can be used; or if none of these are available, an estimated figure with justification or a figure assumed on the basis of up-to-date industry data can be used. | J20: =(0.39*D15) -> 0.2301
B21: Yearly average biogenic percentage of the waste by mass | C21: % | D21: 0.59 | J21: =0.47-0.08*D15 -> 0.4228 | L21: =J20/J21 -> 0.5442289499
B22: If waste sampling undertaken, no. of samples used to ascertain average biogenic percentages above | C22: Number | D22: 12
B23: Description of how biogenic percentage (by mass) has been calculated or estimated. See Note 7 | C23: Waste sampling data | F23: Note 7: Where available, data from waste sampling should be used; otherwise, an estimated figure with justification can be used, or a figure assumed on the basis of up-to-date industry data.
B25: Comments:

Sheet Residues
A1: =+'Cover Page'!$B$29 -> Annual Performance Report 2025 | E1: =+'Cover Page'!$B$33 -> The CSWDC Waste to Energy Plant
A3: Summary of Residue Handling for the reporting year
A5: Incinerator bottom ash is separated and stored on site for collection by aggregate HGVs, which as loaded by crane before transporting the ash to a processing site which is operated by a third party. All metals metals are left mixed with the IBA and removed from site for processing by a third party (Johnsons Aggregates, Derby), and the metal is now separated by them on their premises. APCr is conveyed by the FGT system into storage silos. From there it is deposited into tankers (Lomas) for transortation to a third party processor (Augean). | I5: Include in here a summary of residue handling regimes and destinations
A28: Residue Quality Monitoring Requirements
A30: Summary of monitoring undertaken and compliance
A31: Monthly IBA samples were collected and analysed by Element (January - August inc). From September onwards two samples per month were taken by Element and sent to WRC for analysis
A33: All results winth the limits. LOI analysis is undertaken quarterly
A38: Commentary on any specific events
A39: Date & Event | C39: Description
A52: Residue Quality Monitoring Results
A53: Parameter (unit) | C53: Limit* | D53: Normal Operation
D54: Bottom ash | F54: APC Residues
A55: Loss on Ignition (average %) | C55: <5%
A56: Total Organic Carbon (average %) | C56: <3% | D56: N/A
A57: No. of Assessments Undertaken | C57: --- | D57: 4 per unit
A58: No. of Hazardous Results | C58: --- | D58: 0
A59: * The permit will specify a limit of either 5% loss on ignition or 3% total organic carbon. If both are measured anyway, please enter the results here, even where the limit does not apply.
A61: Comments :

Sheet Water
A1: =+'Cover Page'!$B$29 -> Annual Performance Report 2025 | E1: =+'Cover Page'!$B$33 -> The CSWDC Waste to Energy Plant
A3: Emissions to Water
A5: Summary of monitoring undertaken and compliance
A6: Weekly ph measurement taken of ash quench effluent before dispsoal to sewer by water treament contractors
A8: Effluent qualities monitored by STW
A13: Commentary on any specific events
A14: Date & Event | C14: Description
A22: Emissions to Water / Sewer
A23: Parameter | D23: Monitoring Frequency | F23: Limit | G23: Target | H23: Max. | I23: Average
A24: PH | D24: Weekly | F24: 12 | G24: 9 | H24: 8.56 | I24: 7.78

Sheet Air (periodic)
A1: =+'Cover Page'!$B$29 -> Annual Performance Report 2025 | E1: =+'Cover Page'!$B$33 -> The CSWDC Waste to Energy Plant
A3: Emissions to Air (periodically monitored)
A5: Summary of monitoring undertaken, standards used and compliance | K5: Notes:
K6: Template may require adjustment for any bespoke monitoring requirements of permit - please also check that all default ELV values, reference periods and the stated oxygen reference value match those for your plant, and edit if necessary!
A9: Results of emissions to air that are periodically monitored - oxygen reference 11%
A10: Substance | C10: Ref. Period | D10: Emission Limit Value | F10: Average | K10: User to add additional tables as necessary, depending on whether quarterly or bi-annual reporting is required for the compliance year
F11: A1 | G11: A2 | H11: A3 | I11: A4 | J11: A5
A12: Hydrogen fluoride | C12: 1 hr | D12: 1 mg/m3 | F12: 0.059 | G12: 0.055 | H12: 0.0635
A13: Cd and Tl and their compounds | C13: 0.5-8hrs | D13: 0.02 mg/m3 | F13: 0.0021 | G13: 0.0019 | H13: 0.002
A14: Hg and its compounds | C14: 0.5-8hrs | D14: 0.02 mg/m3 | F14: 0.00044 | G14: 0.0034 | H14: 0.00063
A15: Sb, As, Pb, Cr, Co, Cu, Mn, Ni, V and their compounds | C15: 0.5-8hrs | D15: 0.3 mg/m3 | F15: 0.018 | G15: 0.0435 | H15: 0.014
A16: Dioxins & Furans (I-TEQ) | C16: 6-8hrs | D16: 0.06 ng/m3 | F16: 0.00047 | G16: 0.0073 | H16: 0.00132
A17: PCBs (WHO-TEQ Humans / Mammals) | C17: 6-8hrs | D17: None set ng/m3 | F17: 0.0001036 | G17: 0.0017585 | H17: 0.00013675
A18: PCBs (WHO-TEQ Fish) | C18: 6-8hrs | D18: None set ng/m3 | F18: 6.5e-06 | G18: 8.75e-05 | H18: 2.6e-06
A19: PCBs (WHO-TEQ Birds) | C19: 6-8hrs | D19: None set ng/m3 | F19: 0.00039075 | G19: 0.003168 | H19: 0.0004104
A20: Dioxins & Furans (WHO-TEQ Humans / Mammals) | C20: 6-8hrs | D20: None set ng/m3 | F20: 0.0004325 | G20: 0.0069 | H20: 0.001625
A21: Dioxins & Furans (WHO-TEQ Fish) | C21: 6-8hrs | D21: None set ng/m3 | F21: 0.000395 | G21: 0.0077 | H21: 0.001675
A22: Dioxins & Furans (WHO-TEQ Birds) | C22: 6-8hrs | D22: None set ng/m3 | F22: 0.0017275 | G22: 0.0138 | H22: 0.003825
A23: Anthanthrene | C23: 6-8hrs | D23: None set µg/m3 | F23: 0.00405 | G23: 0.0016 | H23: 0.002
A24: Benzo(a)anthracene | C24: 6-8hrs | D24: None set µg/m3 | F24: 0.02065 | G24: 0.0135 | H24: 0.026
A25: Benzo(a)pyrene | C25: 6-8hrs | D25: None set µg/m3 | F25: 0.00335 | G25: 0.0028 | H25: 0.0034
A26: Benzo(b)fluoranthene | C26: 6-8hrs | D26: None set µg/m3 | F26: 0.00815 | G26: 0.01015 | H26: 0.0064
A27: Benzo(b)naptho(2,1-d) thiophene | C27: 6-8hrs | D27: None set µg/m3 | F27: 0.0269 | G27: 0.0051 | H27: 0.0075
A28: Benzo(c)phenanthrene | C28: 6-8hrs | D28: None set µg/m3 | F28: 0.00725 | G28: 0.0062 | H28: 0.0073
A29: Benzo(ghi)perylene | C29: 6-8hrs | D29: None set µg/m3 | F29: 0.00195 | G29: 0.00295 | H29: 0.012
A30: Benzo(k)fluoranthene | C30: 6-8hrs | D30: None set µg/m3 | F30: 0.0037 | G30: 0.00275 | H30: 0.0036
A31: Cholanthrene | C31: 6-8hrs | D31: None set µg/m3 | F31: 0.0017 | G31: 0.0016 | H31: 0.0018
A32: Chrysene | C32: 6-8hrs | D32: None set µg/m3 | F32: 0.01915 | G32: 0.0068 | H32: 0.012
A33: Cyclopenta(cd)pyrene | C33: 6-8hrs | D33: None set µg/m3 | F33: 0.0017 | G33: 0.0016 | H33: 0.0016
A34: Dibenzo(ai)pyrene | C34: 6-8hrs | D34: None set µg/m3 | F34: 0.0017 | G34: 0.0016 | H34: 0.0016
A35: Dibenzo(ah)anthracene | C35: 6-8hrs | D35: None set µg/m3 | F35: 0.0017 | G35: 0.0016 | H35: 0.0016
A36: Fluoranthene | C36: 6-8hrs | D36: None set µg/m3 | F36: 0.52045 | G36: 0.3815 | H36: 0.3995
A37: Indeno(123-cd) pyrene | C37: 6-8hrs | D37: None set µg/m3 | F37: 0.0019 | G37: 0.0023 | H37: 0.0021
A38: Naphthalene | C38: 6-8hrs | D38: None set µg/m3 | F38: 0.2787 | G38: 0.164 | H38: 0.419
A39: Comments :

Sheet Air (CEMS)
A1: =+'Cover Page'!$B$29 -> Annual Performance Report 2025 | I1: =+'Cover Page'!$B$33 -> The CSWDC Waste to Energy Plant
A3: Emissions to Air (continuously monitored)
N4: Notes:
A5: Summary of monitoring undertaken, standards used and compliance | N5: Template may require adjustment for any bespoke monitoring requirements of permit
N6: Please check that all default ELV values match those for your plant and edit if necessary!
N7: Report to 1 decimal place
A11: Results of emissions to air that are continuously monitored (maximum and average values for each line) - oxygen reference 11%
A12: Substance | B12: Reference Period | C12: Emission Limit Value | D12: A1 | F12: A2 | H12: A3 | J12: A4 | L12: A5
D13: Max. | E13: Avg. | F13: Max. | G13: Avg. | H13: Max. | I13: Avg. | J13: Max. | K13: Avg. | L13: Max. | M13: Avg.
A14: Oxides of nitrogen | B14: Daily mean | C14: 180 mg/m3 | D14: =NOx!O19 -> 178.49 | E14: =NOx!N19 -> 169.9525 | F14: =NOx!O34 -> 178.05 | G14: =NOx!N34 -> 169.8941667 | H14: =NOx!O49 -> 176.54 | I14: =NOx!N49 -> 170.3983333
B15: ½ hourly mean | C15: 400 mg/m3 | D15: =NOx!M19 -> 342.28 | E15: =NOx!L19 -> 169.7891667 | F15: =NOx!M34 -> 337.7 | G15: =NOx!L34 -> 169.9041667 | H15: =NOx!M49 -> 320.27 | I15: =NOx!L49 -> 170.2833333
A16: Particulates | B16: Daily mean | C16: 5 mg/m3 | D16: =Particulates!O19 -> 3.46 | E16: =Particulates!N19 -> 0.4933333333 | F16: =Particulates!O34 -> 2.57 | G16: =Particulates!N34 -> 0.6791666667 | H16: =Particulates!O49 -> 1.41 | I16: =Particulates!N49 -> 0.7941666667
B17: ½ hourly mean | C17: 30 mg/m3 | D17: =Particulates!M19 -> 30.87 | E17: =Particulates!L19 -> 0.4833333333 | F17: =Particulates!M34 -> 7.73 | G17: =Particulates!L34 -> 0.6816666667 | H17: =Particulates!M49 -> 3.41 | I17: =Particulates!L49 -> 0.7933333333
A18: Total Organic Carbon | B18: Daily mean | C18: 10 mg/m3 | D18: =TOC!O19 -> 2.06 | E18: =TOC!N19 -> 1.160833333 | F18: =TOC!O34 -> 1.43 | G18: =TOC!N34 -> 0.525 | H18: =TOC!O49 -> 1.57 | I18: =TOC!N49 -> 0.6841666667
B19: ½ hourly mean | C19: 20 mg/m3 | D19: =TOC!M19 -> 8.31 | E19: =TOC!L19 -> 1.169166667 | F19: =TOC!M34 -> 8.86 | G19: =TOC!L34 -> 0.5258333333 | H19: =TOC!M49 -> 18.2 | I19: =TOC!L49 -> 0.6908333333
A20: Hydrogen chloride | B20: Daily mean | C20: 8 mg/m3 | D20: =HCl!O19 -> 2.95 | E20: =HCl!N19 -> 0.895 | F20: =HCl!O34 -> 3.66 | G20: =HCl!N34 -> 0.5975 | H20: =HCl!O49 -> 2.91 | I20: =HCl!N49 -> 1.305
B21: ½ hourly mean | C21: 60 mg/m3 | D21: =HCl!M19 -> 38.43 | E21: =HCl!L19 -> 0.8958333333 | F21: =HCl!M34 -> 6.8 | G21: =HCl!L34 -> 0.6 | H21: =HCl!M49 -> 41.36 | I21: =HCl!L49 -> 1.31
A22: Sulphur dioxide | B22: Daily mean | C22: 40 mg/m3 | D22: ='SO2'!O19 -> 37.65 | E22: ='SO2'!N19 -> 32.84916667 | F22: ='SO2'!O34 -> 38.78 | G22: ='SO2'!N34 -> 33.95666667 | H22: ='SO2'!O49 -> 37.01 | I22: ='SO2'!N49 -> 32.75083333
B23: ½ hourly mean | C23: 200 mg/m3 | D23: ='SO2'!M19 -> 146.99 | E23: ='SO2'!L19 -> 32.81583333 | F23: ='SO2'!M34 -> 134.71 | G23: ='SO2'!L34 -> 33.91 | H23: ='SO2'!M49 -> 155.89 | I23: ='SO2'!L49 -> 32.6075
A24: Carbon monoxide | B24: Daily mean | C24: 50 mg/m3 | D24: ='CO 95% 10 min'!Q22 -> 45.73 | E24: ='CO 95% 10 min'!P22 -> 21.81333333 | F24: ='CO 95% 10 min'!Q37 -> 41.63 | G24: ='CO 95% 10 min'!P37 -> 20.7425 | H24: ='CO 95% 10 min'!Q52 -> 31.84 | I24: ='CO 95% 10 min'!P52 -> 19.15666667
B25: ½ hourly mean * | C25: 100 mg/m3 *
B26: 95%ile 10-min avg * | C26: 150 mg/m3 * | D26: ='CO 95% 10 min'!O22 -> 436.13 | E26: ='CO 95% 10 min'!M22 -> 68.41 | F26: ='CO 95% 10 min'!O37 -> 439.32 | G26: ='CO 95% 10 min'!M37 -> 67.0325 | H26: ='CO 95% 10 min'!O52 -> 747.2 | I26: ='CO 95% 10 min'!M52 -> 47.66416667
A27: Ammonia | B27: Daily mean | C27: 15 mg/m3 | D27: ='NH3'!O19 -> 12.87 | E27: ='NH3'!N19 -> 6.160833333 | F27: ='NH3'!O34 -> 12.26 | G27: ='NH3'!N34 -> 5.523333333 | H27: ='NH3'!O49 -> 11.56 | I27: ='NH3'!N49 -> 4.186666667
A28: * = delete as appropriate, depending on whether your plant has half-hourly or 10-min CO ELVs
A29: Comments :

Sheet HCl
A1: =+'Cover Page'!$B$29 -> Annual Performance Report 2025 | E1: =+'Cover Page'!$B$33 -> The CSWDC Waste to Energy Plant
A3: Monitoring of Hydrogen Chloride emissions | D3: Whole Installation | G3: See Notes in Cell Q3 | J3: =+A3 -> Monitoring of Hydrogen Chloride emissions | N3: Per Combustion Line | Q3: Notes:
Q4: User to add logic to complete Whole installation, Table A5:G18. From the data in Per Combustion Line, Table J6:O79, subject to No. of lines installed
A5: =+'Cover Page'!C39 -> 2025 | B5: 1/2 Hourly Reference Periods | E5: Daily Reference Periods
A6: mg/Nm3 | B6: 1/2 hourly HCl ELV | C6: Monthly mean of half-hourly averages | D6: Highest half- hourly average | E6: Daily HCl ELV | F6: Monthly mean of daily averages | G6: Highest daily average | J6: =+A5 -> 2025 | K6: mg/Nm3 | L6: Monthly mean of half-hourly averages | M6: Highest half- hourly average | N6: Monthly mean of daily averages | O6: Highest daily average
A7: Jan | B7: 60 | C7: 1.01 | D7: 41.36 | E7: 8 | F7: 0.98 | G7: 2.95 | J7: A1 | K7: Jan | L7: 1.44 | M7: 38.43 | N7: 1.4 | O7: 2.95
A8: Feb | B8: 60 | C8: 1.03 | D8: 16.59 | E8: 8 | F8: 1.01 | G8: 2 | K8: Feb | L8: 1.46 | M8: 4.32 | N8: 1.48 | O8: 2
A9: Mar | B9: 60 | C9: 1.3 | D9: 10.81 | E9: 8 | F9: 1.29 | G9: 3.15 | K9: Mar | L9: 1.56 | M9: 4.47 | N9: 1.56 | O9: 2.19 | Q9: Whole Installation table A5:G18:
A10: Apr | B10: 60 | C10: 1.23 | D10: 30.91 | E10: 8 | F10: 1.22 | G10: 3.66 | K10: Apr | L10: 0.26 | M10: 2.24 | N10: 0.25 | O10: 0.52 | Q10: Mean: for 1/2 hourly and daily periods calculate mean of values across all operational combustion lines for the month
A11: May | B11: 60 | C11: 0.74 | D11: 4.31 | E11: 8 | F11: 0.75 | G11: 2.33 | K11: May | L11: 0.45 | M11: 1.64 | N11: 0.45 | O11: 0.63
A12: Jun | B12: 60 | C12: 0.72 | D12: 5.85 | E12: 8 | F12: 0.72 | G12: 1.6 | K12: Jun | L12: 0.69 | M12: 5.85 | N12: 0.7 | O12: 1.25
A13: Jul | B13: 60 | C13: 0.81 | D13: 4.61 | E13: 8 | F13: 0.8 | G13: 1.37 | K13: Jul | L13: 0.91 | M13: 4.61 | N13: 0.91 | O13: 1.22 | Q13: Maximum: for 1/2 hourly and daily periods use the highest value across all operational combustion lines for the month
A14: Aug | B14: 60 | C14: 1.11 | D14: 5.7 | E14: 8 | F14: 1.1 | G14: 2.4 | K14: Aug | L14: 1.06 | M14: 4.03 | N14: 1.07 | O14: 1.31
A15: Sep | B15: 60 | C15: 1.18 | D15: 9.59 | E15: 8 | F15: 1.16 | G15: 2.09 | K15: Sep | L15: 0.96 | M15: 3.4 | N15: 0.94 | O15: 1.38
A16: Oct | B16: 60 | C16: 0.61 | D16: 4.2 | E16: 8 | F16: 0.63 | G16: 1.6 | K16: Oct | L16: 0.48 | M16: 1.03 | N16: 0.5 | O16: 0.73
A17: Nov | B17: 60 | C17: 0.7 | D17: 4.5 | E17: 8 | F17: 0.68 | G17: 1.81 | K17: Nov | L17: 0.61 | M17: 3.7 | N17: 0.61 | O17: 1.19
A18: Dec | B18: 60 | C18: 0.78 | D18: 8.35 | E18: 8 | F18: 0.78 | G18: 1.58 | K18: Dec | L18: 0.87 | M18: 8.35 | N18: 0.87 | O18: 1.58
K19: Annual | L19: =AVERAGE(L7:L18) -> 0.8958333333 | M19: =MAX(M7:M18) -> 38.43 | N19: =AVERAGE(N7:N18) -> 0.895 | O19: =MAX(O7:O18) -> 2.95
J21: =+A5 -> 2025 | K21: mg/Nm3 | L21: Monthly mean of half-hourly averages | M21: Highest half- hourly average | N21: Monthly mean of daily averages | O21: Highest daily average
J22: A2 | K22: Jan | L22: 0.2 | M22: 4.29 | N22: 0.2 | O22: 1.19
K23: Feb | L23: 0.68 | M23: 2.55 | N23: 0.68 | O23: 1.3
K24: Mar | L24: 1.55 | M24: 6.8 | N24: 1.54 | O24: 3.15
K25: Apr | L25: 1.26 | M25: 5.09 | N25: 1.22 | O25: 3.66
K26: May | L26: 0.17 | M26: 1.27 | N26: 0.17 | O26: 0.56
K27: Jun | L27: 0.42 | M27: 1.55 | N27: 0.42 | O27: 0.65
K28: Jul | L28: 0.4 | M28: 2.22 | N28: 0.4 | O28: 0.71
K29: Aug | L29: 0.73 | M29: 4.61 | N29: 0.72 | O29: 2.4
K30: Sep | L30: 0.98 | M30: 4.78 | N30: 0.97 | O30: 1.62
K31: Oct | L31: -0.03 | M31: 1.27 | N31: 0.01 | O31: 0.17
K32: Nov | L32: 0.36 | M32: 2.82 | N32: 0.36 | O32: 0.88
K33: Dec | L33: 0.48 | M33: 3.57 | N33: 0.48 | O33: 0.97
K34: Annual | L34: =AVERAGE(L22:L33) -> 0.6 | M34: =MAX(M22:M33) -> 6.8 | N34: =AVERAGE(N22:N33) -> 0.5975 | O34: =MAX(O22:O33) -> 3.66
J36: =+A5 -> 2025 | K36: mg/Nm3 | L36: Monthly mean of half-hourly averages | M36: Highest half- hourly average | N36: Monthly mean of daily averages | O36: Highest daily average
J37: A3 | K37: Jan | L37: 1.49 | M37: 41.36 | N37: 1.51 | O37: 2.91
K38: Feb | L38: 1.02 | M38: 16.59 | N38: 1.02 | O38: 1.43
K39: Mar | L39: 0.79 | M39: 10.81 | N39: 0.79 | O39: 1.75
K40: Apr | L40: 1.85 | M40: 30.91 | N40: 1.83 | O40: 2.5
K41: May | L41: 1.61 | M41: 4.31 | N41: 1.61 | O41: 2.33
K42: Jun | L42: 1.21 | M42: 4.29 | N42: 1.2 | O42: 1.6
K43: Jul | L43: 1.12 | M43: 4.15 | N43: 1.11 | O43: 1.37
K44: Aug | L44: 1.53 | M44: 5.7 | N44: 1.5 | O44: 1.95
K45: Sep | L45: 1.55 | M45: 9.59 | N45: 1.52 | O45: 2.09
K46: Oct | L46: 1.24 | M46: 4.2 | N46: 1.25 | O46: 1.6
K47: Nov | L47: 1.31 | M47: 4.5 | N47: 1.32 | O47: 1.81
A48: Comments : | K48: Dec | L48: 1 | M48: 2.58 | N48: 1 | O48: 1.17
K49: Annual | L49: =AVERAGE(L37:L48) -> 1.31 | M49: =MAX(M37:M48) -> 41.36 | N49: =AVERAGE(N37:N48) -> 1.305 | O49: =MAX(O37:O48) -> 2.91
J51: =+A5 -> 2025 | K51: mg/Nm3 | L51: Monthly mean of half-hourly averages | M51: Highest half- hourly average | N51: Monthly mean of daily averages | O51: Highest daily average
J52: A4 | K52: Jan
K53: Feb
K54: Mar
K55: Apr
K56: May
K57: Jun
K58: Jul
K59: Aug
K60: Sep
K61: Oct
K62: Nov
K63: Dec
K64: Annual | L64: =AVERAGE(L52:L63) ->  | M64: =MAX(M52:M63) -> 0 | N64: =AVERAGE(N52:N63) ->  | O64: =MAX(O52:O63) -> 0
J66: =+A5 -> 2025 | K66: mg/Nm3 | L66: Monthly mean of half-hourly averages | M66: Highest half- hourly average | N66: Monthly mean of daily averages | O66: Highest daily average
J67: A5 | K67: Jan
K68: Feb
K69: Mar
K70: Apr
K71: May
K72: Jun
K73: Jul
K74: Aug
K75: Sep
K76: Oct
K77: Nov
K78: Dec
K79: Annual | L79: =AVERAGE(L67:L78) ->  | M79: =MAX(M67:M78) -> 0 | N79: =AVERAGE(N67:N78) ->  | O79: =MAX(O67:O78) -> 0

Sheet SO2
A1: =+'Cover Page'!$B$29 -> Annual Performance Report 2025 | E1: =+'Cover Page'!$B$33 -> The CSWDC Waste to Energy Plant
A3: Monitoring of Sulphur dioxide emissions | D3: Whole Installation | G3: See Notes in Cell Q3 | J3: =+A3 -> Monitoring of Sulphur dioxide emissions | N3: Per Combustion Line | Q3: Notes:
Q4: User to add logic to complete Whole installation, Table A5:G18. From the data in Per Combustion Line, Table J6:O79, subject to No. of lines installed
A5: =+'Cover Page'!C39 -> 2025 | B5: 1/2 Hourly Reference Periods | E5: Daily Reference Periods
A6: mg/Nm3 | B6: 1/2 hourly SO2 ELV | C6: Monthly mean of half-hourly averages | D6: Highest half- hourly average | E6: Daily SO2 ELV | F6: Monthly mean of daily averages | G6: Highest daily average | J6: =+A5 -> 2025 | K6: mg/Nm3 | L6: Monthly mean of half-hourly averages | M6: Highest half- hourly average | N6: Monthly mean of daily averages | O6: Highest daily average
A7: Jan | B7: 200 | C7: 31.18 | D7: 146.99 | E7: 40 | F7: 31.34 | G7: 36.4 | J7: A1 | K7: Jan | L7: 34.04 | M7: 146.99 | N7: 34.11 | O7: 36.4
A8: Feb | B8: 200 | C8: 33.67 | D8: 119.89 | E8: 40 | F8: 33.59 | G8: 37.65 | K8: Feb | L8: 35.1 | M8: 119.89 | N8: 35.06 | O8: 37.65
A9: Mar | B9: 200 | C9: 34.08 | D9: 98.45 | E9: 40 | F9: 34.03 | G9: 36.22 | K9: Mar | L9: 34.74 | M9: 86.87 | N9: 34.66 | O9: 36.22 | Q9: Whole Installation table A5:G18:
A10: Apr | B10: 200 | C10: 33.71 | D10: 128.87 | E10: 40 | F10: 33.89 | G10: 38.78 | K10: Apr | L10: 33.36 | M10: 128.87 | N10: 33.34 | O10: 35.29 | Q10: Mean: for 1/2 hourly and daily periods calculate mean of values across all operational combustion lines for the month
A11: May | B11: 200 | C11: 34.69 | D11: 155.89 | E11: 40 | F11: 34.71 | G11: 37.44 | K11: May | L11: 34.58 | M11: 103.21 | N11: 34.64 | O11: 36.05
A12: Jun | B12: 200 | C12: 33.74 | D12: 110.96 | E12: 40 | F12: 33.85 | G12: 37.01 | K12: Jun | L12: 34.48 | M12: 69.89 | N12: 34.66 | O12: 36.68
A13: Jul | B13: 200 | C13: 34.2 | D13: 92.75 | E13: 40 | F13: 34.24 | G13: 36.42 | K13: Jul | L13: 35.07 | M13: 87.21 | N13: 35.06 | O13: 36.42 | Q13: Maximum: for 1/2 hourly and daily periods use the highest value across all operational combustion lines for the month
A14: Aug | B14: 200 | C14: 34.55 | D14: 134.71 | E14: 40 | F14: 34.6 | G14: 36.34 | K14: Aug | L14: 35.14 | M14: 116.41 | N14: 35.19 | O14: 36.34
A15: Sep | B15: 200 | C15: 33.55 | D15: 92.28 | E15: 40 | F15: 33.41 | G15: 36.09 | K15: Sep | L15: 34.68 | M15: 86.93 | N15: 34.4 | O15: 35.95
A16: Oct | B16: 200 | C16: 32.04 | D16: 72.17 | E16: 40 | F16: 32.61 | G16: 36.04 | K16: Oct | L16: 30.02 | M16: 64.73 | N16: 30.34 | O16: 35.07
A17: Nov | B17: 200 | C17: 30.12 | D17: 120.85 | E17: 40 | F17: 30.03 | G17: 36.83 | K17: Nov | L17: 24 | M17: 120.85 | N17: 23.99 | O17: 36.83
A18: Dec | B18: 200 | C18: 31.47 | D18: 107.71 | E18: 40 | F18: 31.56 | G18: 37.05 | K18: Dec | L18: 28.58 | M18: 105.24 | N18: 28.74 | O18: 37.05
K19: Annual | L19: =AVERAGE(L7:L18) -> 32.81583333 | M19: =MAX(M7:M18) -> 146.99 | N19: =AVERAGE(N7:N18) -> 32.84916667 | O19: =MAX(O7:O18) -> 37.65
J21: =+A5 -> 2025 | K21: mg/Nm3 | L21: Monthly mean of half-hourly averages | M21: Highest half- hourly average | N21: Monthly mean of daily averages | O21: Highest daily average
J22: A2 | K22: Jan | L22: 32.29 | M22: 110.88 | N22: 32.29 | O22: 35.98
K23: Feb | L23: 34.13 | M23: 95.83 | N23: 34.13 | O23: 35.18
K24: Mar | L24: 33.7 | M24: 98.45 | N24: 33.66 | O24: 36.04
K25: Apr | L25: 33.98 | M25: 111.85 | N25: 33.99 | O25: 38.78
K26: May | L26: 34.93 | M26: 86.16 | N26: 34.93 | O26: 37.44
K27: Jun | L27: 34.91 | M27: 110.96 | N27: 34.91 | O27: 36.34
K28: Jul | L28: 34.76 | M28: 92.75 | N28: 34.76 | O28: 35.67
K29: Aug | L29: 34.6 | M29: 134.71 | N29: 34.57 | O29: 35.95
K30: Sep | L30: 33.06 | M30: 65.16 | N30: 32.98 | O30: 35.53
K31: Oct | L31: 33.12 | M31: 65.22 | N31: 33.83 | O31: 36.04
K32: Nov | L32: 33.82 | M32: 81.82 | N32: 33.81 | O32: 35.89
K33: Dec | L33: 33.62 | M33: 70.02 | N33: 33.62 | O33: 36.2
K34: Annual | L34: =AVERAGE(L22:L33) -> 33.91 | M34: =MAX(M22:M33) -> 134.71 | N34: =AVERAGE(N22:N33) -> 33.95666667 | O34: =MAX(O22:O33) -> 38.78
J36: =+A5 -> 2025 | K36: mg/Nm3 | L36: Monthly mean of half-hourly averages | M36: Highest half- hourly average | N36: Monthly mean of daily averages | O36: Highest daily average
J37: A3 | K37: Jan | L37: 27.56 | M37: 121.9 | N37: 27.99 | O37: 34.73
K38: Feb | L38: 32 | M38: 104.78 | N38: 31.93 | O38: 34.92
K39: Mar | L39: 33.82 | M39: 97.67 | N39: 33.81 | O39: 35.38
K40: Apr | L40: 33.73 | M40: 88.75 | N40: 34.16 | O40: 36.14
K41: May | L41: 34.55 | M41: 155.89 | N41: 34.55 | O41: 36.68
K42: Jun | L42: 31.11 | M42: 76.9 | N42: 31.25 | O42: 37.01
K43: Jul | L43: 32.78 | M43: 66.24 | N43: 32.85 | O43: 34.99
K44: Aug | L44: 33.91 | M44: 83.51 | N44: 34.03 | O44: 35.69
K45: Sep | L45: 33 | M45: 92.28 | N45: 32.94 | O45: 36.09
K46: Oct | L46: 33.03 | M46: 72.17 | N46: 33.64 | O46: 35.64
K47: Nov | L47: 33.59 | M47: 81.13 | N47: 33.62 | O47: 35.45
A48: Comments : | K48: Dec | L48: 32.21 | M48: 107.71 | N48: 32.24 | O48: 35.34
K49: Annual | L49: =AVERAGE(L37:L48) -> 32.6075 | M49: =MAX(M37:M48) -> 155.89 | N49: =AVERAGE(N37:N48) -> 32.75083333 | O49: =MAX(O37:O48) -> 37.01
J51: =+A5 -> 2025 | K51: mg/Nm3 | L51: Monthly mean of half-hourly averages | M51: Highest half- hourly average | N51: Monthly mean of daily averages | O51: Highest daily average
J52: A4 | K52: Jan
K53: Feb
K54: Mar
K55: Apr
K56: May
K57: Jun
K58: Jul
K59: Aug
K60: Sep
K61: Oct
K62: Nov
K63: Dec
K64: Annual | L64: =AVERAGE(L52:L63) ->  | M64: =MAX(M52:M63) -> 0 | N64: =AVERAGE(N52:N63) ->  | O64: =MAX(O52:O63) -> 0
J66: =+A5 -> 2025 | K66: mg/Nm3 | L66: Monthly mean of half-hourly averages | M66: Highest half- hourly average | N66: Monthly mean of daily averages | O66: Highest daily average
J67: A5 | K67: Jan
K68: Feb
K69: Mar
K70: Apr
K71: May
K72: Jun
K73: Jul
K74: Aug
K75: Sep
K76: Oct
K77: Nov
K78: Dec
K79: Annual | L79: =AVERAGE(L67:L78) ->  | M79: =MAX(M67:M78) -> 0 | N79: =AVERAGE(N67:N78) ->  | O79: =MAX(O67:O78) -> 0

Sheet NOx
A1: =+'Cover Page'!$B$29 -> Annual Performance Report 2025 | E1: =+'Cover Page'!$B$33 -> The CSWDC Waste to Energy Plant
A3: Monitoring of Oxides of Nitrogen emissions | D3: Whole Installation | G3: See Notes in Cell Q3 | J3: =+A3 -> Monitoring of Oxides of Nitrogen emissions | N3: Per Combustion Line | Q3: Notes:
Q4: User to add logic to complete Whole installation, Table A5:G18. From the data in Per Combustion Line, Table J6:O79, subject to No. of lines installed
A5: =+'Cover Page'!C39 -> 2025 | B5: 1/2 Hourly Reference Periods | E5: Daily Reference Periods
A6: mg/Nm3 | B6: 1/2 hourly NOx ELV | C6: Monthly mean of half-hourly averages | D6: Highest half- hourly average | E6: Daily NOx ELV | F6: Monthly mean of daily averages | G6: Highest daily average | J6: =+A5 -> 2025 | K6: mg/Nm3 | L6: Monthly mean of half-hourly averages | M6: Highest half- hourly average | N6: Monthly mean of daily averages | O6: Highest daily average
A7: Jan | B7: 400 | C7: 168.34 | D7: 276.66 | E7: 180 | F7: 168.75 | G7: 175.31 | J7: A1 | K7: Jan | L7: 166.43 | M7: 276.66 | N7: 167.18 | O7: 174.01
A8: Feb | B8: 400 | C8: 165.98 | D8: 274.8 | E8: 180 | F8: 166.25 | G8: 172.35 | K8: Feb | L8: 162.2 | M8: 274.8 | N8: 162.68 | O8: 167.14
A9: Mar | B9: 400 | C9: 168.59 | D9: 313.36 | E9: 180 | F9: 168.54 | G9: 174.9 | K9: Mar | L9: 168.13 | M9: 268 | N9: 167.97 | O9: 174.9 | Q9: Whole Installation table A5:G18:
A10: Apr | B10: 400 | C10: 169.42 | D10: 337.49 | E10: 180 | F10: 169.6 | G10: 176.13 | K10: Apr | L10: 170.5 | M10: 337.49 | N10: 170.89 | O10: 176.13 | Q10: Mean: for 1/2 hourly and daily periods calculate mean of values across all operational combustion lines for the month
A11: May | B11: 400 | C11: 171.31 | D11: 337.7 | E11: 180 | F11: 171.26 | G11: 176.2 | K11: May | L11: 172.16 | M11: 322.04 | N11: 172.03 | O11: 176.2
A12: Jun | B12: 400 | C12: 172.07 | D12: 259.09 | E12: 180 | F12: 172.16 | G12: 178.05 | K12: Jun | L12: 172 | M12: 259.09 | N12: 172.21 | O12: 174.96
A13: Jul | B13: 400 | C13: 171.11 | D13: 283.42 | E13: 180 | F13: 171.14 | G13: 176.66 | K13: Jul | L13: 171.5 | M13: 250.62 | N13: 171.5 | O13: 176.26 | Q13: Maximum: for 1/2 hourly and daily periods use the highest value across all operational combustion lines for the month
A14: Aug | B14: 400 | C14: 170.71 | D14: 287.23 | E14: 180 | F14: 170.73 | G14: 177.65 | K14: Aug | L14: 171.23 | M14: 268.25 | N14: 171.32 | O14: 176.13
A15: Sep | B15: 400 | C15: 170.26 | D15: 321.67 | E15: 180 | F15: 170.39 | G15: 176.54 | K15: Sep | L15: 172.66 | M15: 225.23 | N15: 172.72 | O15: 176.02
A16: Oct | B16: 400 | C16: 171.24 | D16: 342.28 | E16: 180 | F16: 171.38 | G16: 178.49 | K16: Oct | L16: 169.62 | M16: 342.28 | N16: 169.9 | O16: 178.49
A17: Nov | B17: 400 | C17: 170.54 | D17: 320.93 | E17: 180 | F17: 170.57 | G17: 177.69 | K17: Nov | L17: 170.52 | M17: 320.93 | N17: 170.52 | O17: 177.69
A18: Dec | B18: 400 | C18: 170.53 | D18: 317.92 | E18: 180 | F18: 170.5 | G18: 174.9 | K18: Dec | L18: 170.52 | M18: 297.69 | N18: 170.51 | O18: 174.9
K19: Annual | L19: =AVERAGE(L7:L18) -> 169.7891667 | M19: =MAX(M7:M18) -> 342.28 | N19: =AVERAGE(N7:N18) -> 169.9525 | O19: =MAX(O7:O18) -> 178.49
J21: =+A5 -> 2025 | K21: mg/Nm3 | L21: Monthly mean of half-hourly averages | M21: Highest half- hourly average | N21: Monthly mean of daily averages | O21: Highest daily average
J22: A2 | K22: Jan | L22: 169.98 | M22: 274.32 | N22: 169.98 | O22: 175.31
K23: Feb | L23: 165.25 | M23: 245.58 | N23: 165.24 | O23: 170.49
K24: Mar | L24: 166.77 | M24: 313.36 | N24: 166.75 | O24: 173.88
K25: Apr | L25: 166.46 | M25: 328.83 | N25: 166.61 | O25: 175.74
K26: May | L26: 171.33 | M26: 337.7 | N26: 171.33 | O26: 175.93
K27: Jun | L27: 171.77 | M27: 251.01 | N27: 171.67 | O27: 178.05
K28: Jul | L28: 171.85 | M28: 283.42 | N28: 171.85 | O28: 176.66
K29: Aug | L29: 171.48 | M29: 258.2 | N29: 171.4 | O29: 177.65
K30: Sep | L30: 169.14 | M30: 321.67 | N30: 169.18 | O30: 172.63
K31: Oct | L31: 173.71 | M31: 291.85 | N31: 173.61 | O31: 177.91
K32: Nov | L32: 170.89 | M32: 307.81 | N32: 170.89 | O32: 175.47
K33: Dec | L33: 170.22 | M33: 317.92 | N33: 170.22 | O33: 173.93
K34: Annual | L34: =AVERAGE(L22:L33) -> 169.9041667 | M34: =MAX(M22:M33) -> 337.7 | N34: =AVERAGE(N22:N33) -> 169.8941667 | O34: =MAX(O22:O33) -> 178.05
J36: =+A5 -> 2025 | K36: mg/Nm3 | L36: Monthly mean of half-hourly averages | M36: Highest half- hourly average | N36: Monthly mean of daily averages | O36: Highest daily average
J37: A3 | K37: Jan | L37: 168.26 | M37: 262.75 | N37: 168.63 | O37: 174.52
K38: Feb | L38: 169.92 | M38: 252.52 | N38: 169.94 | O38: 172.35
K39: Mar | L39: 170.86 | M39: 299.05 | N39: 170.86 | O39: 174.76
K40: Apr | L40: 171.03 | M40: 274.14 | N40: 171.24 | O40: 175.43
K41: May | L41: 170.48 | M41: 320.27 | N41: 170.48 | O41: 174.66
K42: Jun | L42: 172.62 | M42: 242.27 | N42: 172.83 | O42: 174.62
K43: Jul | L43: 169.97 | M43: 262.89 | N43: 170.02 | O43: 176.31
K44: Aug | L44: 169.39 | M44: 287.23 | N44: 169.46 | O44: 174.52
K45: Sep | L45: 169.16 | M45: 305.14 | N45: 169.49 | O45: 176.54
K46: Oct | L46: 170.78 | M46: 280.13 | N46: 170.92 | O46: 174.21
K47: Nov | L47: 170.08 | M47: 310.29 | N47: 170.12 | O47: 175.4
A48: Comments : | K48: Dec | L48: 170.85 | M48: 286.99 | N48: 170.79 | O48: 174.27
K49: Annual | L49: =AVERAGE(L37:L48) -> 170.2833333 | M49: =MAX(M37:M48) -> 320.27 | N49: =AVERAGE(N37:N48) -> 170.3983333 | O49: =MAX(O37:O48) -> 176.54
J51: =+A5 -> 2025 | K51: mg/Nm3 | L51: Monthly mean of half-hourly averages | M51: Highest half- hourly average | N51: Monthly mean of daily averages | O51: Highest daily average
J52: A4 | K52: Jan
K53: Feb
K54: Mar
K55: Apr
K56: May
K57: Jun
K58: Jul
K59: Aug
K60: Sep
K61: Oct
K62: Nov
K63: Dec
K64: Annual | L64: =AVERAGE(L52:L63) ->  | M64: =MAX(M52:M63) -> 0 | N64: =AVERAGE(N52:N63) ->  | O64: =MAX(O52:O63) -> 0
J66: =+A5 -> 2025 | K66: mg/Nm3 | L66: Monthly mean of half-hourly averages | M66: Highest half- hourly average | N66: Monthly mean of daily averages | O66: Highest daily average
J67: A5 | K67: Jan
K68: Feb
K69: Mar
K70: Apr
K71: May
K72: Jun
K73: Jul
K74: Aug
K75: Sep
K76: Oct
K77: Nov
K78: Dec
K79: Annual | L79: =AVERAGE(L67:L78) ->  | M79: =MAX(M67:M78) -> 0 | N79: =AVERAGE(N67:N78) ->  | O79: =MAX(O67:O78) -> 0

Sheet TOC
A1: =+'Cover Page'!$B$29 -> Annual Performance Report 2025 | E1: =+'Cover Page'!$B$33 -> The CSWDC Waste to Energy Plant
A3: Monitoring of Total organic carbon emissions | D3: Whole Installation | G3: See Notes in Cell Q3 | J3: =+A3 -> Monitoring of Total organic carbon emissions | N3: Per Combustion Line | Q3: Notes:
Q4: User to add logic to complete Whole installation, Table A5:G18. From the data in Per Combustion Line, Table J6:O79, subject to No. of lines installed
A5: =+'Cover Page'!C39 -> 2025 | B5: 1/2 Hourly Reference Periods | E5: Daily Reference Periods
A6: mg/Nm3 | B6: 1/2 hourly TOC ELV | C6: Monthly mean of half-hourly averages | D6: Highest half- hourly average | E6: Daily TOC ELV | F6: Monthly mean of daily averages | G6: Highest daily average | J6: =+A5 -> 2025 | K6: mg/Nm3 | L6: Monthly mean of half-hourly averages | M6: Highest half- hourly average | N6: Monthly mean of daily averages | O6: Highest daily average
A7: Jan | B7: 20 | C7: 0.56 | D7: 10.22 | E7: 10 | F7: 0.54 | G7: 1.19 | J7: A1 | K7: Jan | L7: 0.74 | M7: 6.45 | N7: 0.71 | O7: 1.19
A8: Feb | B8: 20 | C8: 0.79 | D8: 18.2 | E8: 10 | F8: 0.77 | G8: 1.78 | K8: Feb | L8: 0.72 | M8: 6.44 | N8: 0.71 | O8: 1.78
A9: Mar | B9: 20 | C9: 0.8 | D9: 11 | E9: 10 | F9: 0.8 | G9: 1.6 | K9: Mar | L9: 0.72 | M9: 5.27 | N9: 0.71 | O9: 1.6 | Q9: Whole Installation table A5:G18:
A10: Apr | B10: 20 | C10: 0.63 | D10: 5.39 | E10: 10 | F10: 0.62 | G10: 1.28 | K10: Apr | L10: 1.05 | M10: 5.39 | N10: 1.04 | O10: 1.28 | Q10: Mean: for 1/2 hourly and daily periods calculate mean of values across all operational combustion lines for the month
A11: May | B11: 20 | C11: 0.81 | D11: 6.06 | E11: 10 | F11: 0.8 | G11: 1.7 | K11: May | L11: 1.12 | M11: 6.06 | N11: 1.12 | O11: 1.7
A12: Jun | B12: 20 | C12: 0.99 | D12: 8.86 | E12: 10 | F12: 0.99 | G12: 2.06 | K12: Jun | L12: 1.61 | M12: 5.72 | N12: 1.6 | O12: 2.06
A13: Jul | B13: 20 | C13: 0.97 | D13: 6.6 | E13: 10 | F13: 0.97 | G13: 1.8 | K13: Jul | L13: 1.57 | M13: 5.74 | N13: 1.57 | O13: 1.8 | Q13: Maximum: for 1/2 hourly and daily periods use the highest value across all operational combustion lines for the month
A14: Aug | B14: 20 | C14: 0.94 | D14: 6.05 | E14: 10 | F14: 0.95 | G14: 1.85 | K14: Aug | L14: 1.52 | M14: 5.49 | N14: 1.52 | O14: 1.85
A15: Sep | B15: 20 | C15: 1.01 | D15: 7.17 | E15: 10 | F15: 1 | G15: 1.8 | K15: Sep | L15: 1.67 | M15: 5.62 | N15: 1.67 | O15: 1.8
A16: Oct | B16: 20 | C16: 0.76 | D16: 15.77 | E16: 10 | F16: 0.74 | G16: 1.64 | K16: Oct | L16: 1.04 | M16: 8.31 | N16: 1.02 | O16: 1.64
A17: Nov | B17: 20 | C17: 0.6 | D17: 6.06 | E17: 10 | F17: 0.6 | G17: 1.35 | K17: Nov | L17: 1.15 | M17: 6.06 | N17: 1.15 | O17: 1.35
A18: Dec | B18: 20 | C18: 0.66 | D18: 8.34 | E18: 10 | F18: 0.65 | G18: 1.36 | K18: Dec | L18: 1.12 | M18: 6.39 | N18: 1.11 | O18: 1.36
K19: Annual | L19: =AVERAGE(L7:L18) -> 1.169166667 | M19: =MAX(M7:M18) -> 8.31 | N19: =AVERAGE(N7:N18) -> 1.160833333 | O19: =MAX(O7:O18) -> 2.06
J21: =+A5 -> 2025 | K21: mg/Nm3 | L21: Monthly mean of half-hourly averages | M21: Highest half- hourly average | N21: Monthly mean of daily averages | O21: Highest daily average
J22: A2 | K22: Jan | L22: 0.45 | M22: 5.16 | N22: 0.45 | O22: 0.91
K23: Feb | L23: 0.61 | M23: 6.58 | N23: 0.61 | O23: 1.02
K24: Mar | L24: 0.8 | M24: 5.05 | N24: 0.8 | O24: 1.43
K25: Apr | L25: 0.22 | M25: 4.11 | N25: 0.22 | O25: 0.69
K26: May | L26: 0.65 | M26: 4.79 | N26: 0.65 | O26: 1.04
K27: Jun | L27: 0.67 | M27: 8.86 | N27: 0.67 | O27: 0.95
K28: Jul | L28: 0.64 | M28: 5.08 | N28: 0.64 | O28: 0.99
K29: Aug | L29: 0.64 | M29: 6.05 | N29: 0.64 | O29: 0.93
K30: Sep | L30: 0.73 | M30: 5.71 | N30: 0.73 | O30: 0.93
K31: Oct | L31: 0.57 | M31: 5.9 | N31: 0.56 | O31: 0.83
K32: Nov | L32: 0.15 | M32: 3.62 | N32: 0.15 | O32: 0.31
K33: Dec | L33: 0.18 | M33: 3.16 | N33: 0.18 | O33: 0.33
K34: Annual | L34: =AVERAGE(L22:L33) -> 0.5258333333 | M34: =MAX(M22:M33) -> 8.86 | N34: =AVERAGE(N22:N33) -> 0.525 | O34: =MAX(O22:O33) -> 1.43
J36: =+A5 -> 2025 | K36: mg/Nm3 | L36: Monthly mean of half-hourly averages | M36: Highest half- hourly average | N36: Monthly mean of daily averages | O36: Highest daily average
J37: A3 | K37: Jan | L37: 0.52 | M37: 10.22 | N37: 0.5 | O37: 1.06
K38: Feb | L38: 1.02 | M38: 18.2 | N38: 0.97 | O38: 1.57
K39: Mar | L39: 0.89 | M39: 11 | N39: 0.89 | O39: 1.46
K40: Apr | L40: 0.67 | M40: 1.56 | N40: 0.68 | O40: 0.86
K41: May | L41: 0.66 | M41: 2.59 | N41: 0.66 | O41: 0.85
K42: Jun | L42: 0.73 | M42: 6.14 | N42: 0.73 | O42: 1.2
K43: Jul | L43: 0.69 | M43: 6.6 | N43: 0.69 | O43: 0.93
K44: Aug | L44: 0.66 | M44: 5.25 | N44: 0.66 | O44: 0.8
K45: Sep | L45: 0.68 | M45: 7.17 | N45: 0.68 | O45: 0.79
K46: Oct | L46: 0.65 | M46: 15.77 | N46: 0.63 | O46: 0.84
K47: Nov | L47: 0.45 | M47: 4.27 | N47: 0.45 | O47: 0.69
A48: Comments : | K48: Dec | L48: 0.67 | M48: 8.34 | N48: 0.67 | O48: 0.83
K49: Annual | L49: =AVERAGE(L37:L48) -> 0.6908333333 | M49: =MAX(M37:M48) -> 18.2 | N49: =AVERAGE(N37:N48) -> 0.6841666667 | O49: =MAX(O37:O48) -> 1.57
J51: =+A5 -> 2025 | K51: mg/Nm3 | L51: Monthly mean of half-hourly averages | M51: Highest half- hourly average | N51: Monthly mean of daily averages | O51: Highest daily average
J52: A4 | K52: Jan
K53: Feb
K54: Mar
K55: Apr
K56: May
K57: Jun
K58: Jul
K59: Aug
K60: Sep
K61: Oct
K62: Nov
K63: Dec
K64: Annual | L64: =AVERAGE(L52:L63) ->  | M64: =MAX(M52:M63) -> 0 | N64: =AVERAGE(N52:N63) ->  | O64: =MAX(O52:O63) -> 0
J66: =+A5 -> 2025 | K66: mg/Nm3 | L66: Monthly mean of half-hourly averages | M66: Highest half- hourly average | N66: Monthly mean of daily averages | O66: Highest daily average
J67: A5 | K67: Jan
K68: Feb
K69: Mar
K70: Apr
K71: May
K72: Jun
K73: Jul
K74: Aug
K75: Sep
K76: Oct
K77: Nov
K78: Dec
K79: Annual | L79: =AVERAGE(L67:L78) ->  | M79: =MAX(M67:M78) -> 0 | N79: =AVERAGE(N67:N78) ->  | O79: =MAX(O67:O78) -> 0

Sheet Particulates
A1: =+'Cover Page'!$B$29 -> Annual Performance Report 2025 | E1: =+'Cover Page'!$B$33 -> The CSWDC Waste to Energy Plant
A3: Monitoring of Particulate matter emissions | D3: Whole Installation | G3: See Notes in Cell Q3 | J3: =+A3 -> Monitoring of Particulate matter emissions | N3: Per Combustion Line | Q3: Notes:
A5: =+'Cover Page'!C39 -> 2025 | B5: 1/2 Hourly Reference Periods | E5: Daily Reference Periods | Q5: User to add logic to complete Whole installation, Table A5:G18. From the data in Per Combustion Line, Table J6:O79, subject to No. of lines installed
A6: mg/Nm3 | B6: 1/2 hourly PM ELV | C6: Monthly mean of half-hourly averages | D6: Highest half- hourly average | E6: Daily PM ELV | F6: Monthly mean of daily averages | G6: Highest daily average | J6: =+A5 -> 2025 | K6: mg/Nm3 | L6: Monthly mean of half-hourly averages | M6: Highest half- hourly average | N6: Monthly mean of daily averages | O6: Highest daily average
A7: Jan | B7: 30 | C7: 0.54 | D7: 1.12 | E7: 5 | F7: 0.55 | G7: 1.04 | J7: A1 | K7: Jan | L7: 0.41 | M7: 0.72 | N7: 0.41 | O7: 0.46
A8: Feb | B8: 30 | C8: 0.77 | D8: 30.87 | E8: 5 | F8: 0.78 | G8: 3.12 | K8: Feb | L8: 0.93 | M8: 30.87 | N8: 1.02 | O8: 3.12
A9: Mar | B9: 30 | C9: 0.78 | D9: 7.15 | E9: 5 | F9: 0.79 | G9: 3.46 | K9: Mar | L9: 0.81 | M9: 7.15 | N9: 0.84 | O9: 3.46
A10: Apr | B10: 30 | C10: 0.66 | D10: 1.83 | E10: 5 | F10: 0.66 | G10: 0.96 | K10: Apr | L10: 0.38 | M10: 1.41 | N10: 0.38 | O10: 0.4 | Q10: Whole Installation table A5:G18:
A11: May | B11: 30 | C11: 0.7 | D11: 1.62 | E11: 5 | F11: 0.7 | G11: 1.18 | K11: May | L11: 0.38 | M11: 0.8 | N11: 0.38 | O11: 0.4 | Q11: Mean: for 1/2 hourly and daily periods calculate mean of values across all operational combustion lines for the month
A12: Jun | B12: 30 | C12: 0.65 | D12: 1.62 | E12: 5 | F12: 0.65 | G12: 1.08 | K12: Jun | L12: 0.4 | M12: 0.66 | N12: 0.4 | O12: 0.44
A13: Jul | B13: 30 | C13: 0.59 | D13: 1.46 | E13: 5 | F13: 0.59 | G13: 1.1 | K13: Jul | L13: 0.43 | M13: 0.57 | N13: 0.43 | O13: 0.46
A14: Aug | B14: 30 | C14: 0.53 | D14: 1.8 | E14: 5 | F14: 0.53 | G14: 1.1 | K14: Aug | L14: 0.42 | M14: 0.6 | N14: 0.42 | O14: 0.44 | Q14: Maximum: for 1/2 hourly and daily periods use the highest value across all operational combustion lines for the month
A15: Sep | B15: 30 | C15: 0.51 | D15: 2.12 | E15: 5 | F15: 0.5 | G15: 1.06 | K15: Sep | L15: 0.41 | M15: 0.52 | N15: 0.41 | O15: 0.42
A16: Oct | B16: 30 | C16: 0.9 | D16: 7.73 | E16: 5 | F16: 0.9 | G16: 2.57 | K16: Oct | L16: 0.41 | M16: 1.23 | N16: 0.41 | O16: 0.44
A17: Nov | B17: 30 | C17: 0.66 | D17: 3.41 | E17: 5 | F17: 0.65 | G17: 1.96 | K17: Nov | L17: 0.41 | M17: 0.74 | N17: 0.41 | O17: 0.44
A18: Dec | B18: 30 | C18: 0.57 | D18: 2.53 | E18: 5 | F18: 0.57 | G18: 2.09 | K18: Dec | L18: 0.41 | M18: 0.62 | N18: 0.41 | O18: 0.44
K19: Annual | L19: =AVERAGE(L7:L18) -> 0.4833333333 | M19: =MAX(M7:M18) -> 30.87 | N19: =AVERAGE(N7:N18) -> 0.4933333333 | O19: =MAX(O7:O18) -> 3.46
J21: =+A5 -> 2025 | K21: mg/Nm3 | L21: Monthly mean of half-hourly averages | M21: Highest half- hourly average | N21: Monthly mean of daily averages | O21: Highest daily average
J22: A2 | K22: Jan | L22: 0.75 | M22: 1.12 | N22: 0.75 | O22: 1.04
K23: Feb | L23: 0.67 | M23: 1.44 | N23: 0.67 | O23: 0.8
K24: Mar | L24: 0.7 | M24: 1.86 | N24: 0.7 | O24: 0.82
K25: Apr | L25: 0.81 | M25: 1.83 | N25: 0.81 | O25: 0.96
K26: May | L26: 0.86 | M26: 1.27 | N26: 0.86 | O26: 0.94
K27: Jun | L27: 0.78 | M27: 1.22 | N27: 0.78 | O27: 0.93
K28: Jul | L28: 0.51 | M28: 1.09 | N28: 0.51 | O28: 0.83
K29: Aug | L29: 0.32 | M29: 1.12 | N29: 0.32 | O29: 0.41
K30: Sep | L30: 0.29 | M30: 0.53 | N30: 0.29 | O30: 0.31
K31: Oct | L31: 1.07 | M31: 7.73 | N31: 1.04 | O31: 2.57
K32: Nov | L32: 0.65 | M32: 2.5 | N32: 0.65 | O32: 1.96
K33: Dec | L33: 0.77 | M33: 2.53 | N33: 0.77 | O33: 2.09
K34: Annual | L34: =AVERAGE(L22:L33) -> 0.6816666667 | M34: =MAX(M22:M33) -> 7.73 | N34: =AVERAGE(N22:N33) -> 0.6791666667 | O34: =MAX(O22:O33) -> 2.57
J36: =+A5 -> 2025 | K36: mg/Nm3 | L36: Monthly mean of half-hourly averages | M36: Highest half- hourly average | N36: Monthly mean of daily averages | O36: Highest daily average
J37: A3 | K37: Jan | L37: 0.44 | M37: 0.81 | N37: 0.44 | O37: 0.62
K38: Feb | L38: 0.72 | M38: 1.23 | N38: 0.72 | O38: 0.88
K39: Mar | L39: 0.84 | M39: 2.26 | N39: 0.84 | O39: 1.07
K40: Apr | L40: 0.73 | M40: 1.3 | N40: 0.72 | O40: 0.92
K41: May | L41: 0.84 | M41: 1.62 | N41: 0.84 | O41: 1.18
K42: Jun | L42: 0.74 | M42: 1.62 | N42: 0.74 | O42: 1.08
K43: Jul | L43: 0.83 | M43: 1.46 | N43: 0.82 | O43: 1.1
K44: Aug | L44: 0.84 | M44: 1.8 | N44: 0.86 | O44: 1.1
K45: Sep | L45: 0.79 | M45: 2.12 | N45: 0.79 | O45: 1.06
K46: Oct | L46: 1.23 | M46: 2.11 | N46: 1.23 | O46: 1.41
K47: Nov | L47: 1.01 | M47: 3.41 | N47: 1.01 | O47: 1.29
A48: Comments : | K48: Dec | L48: 0.51 | M48: 1 | N48: 0.52 | O48: 0.71
K49: Annual | L49: =AVERAGE(L37:L48) -> 0.7933333333 | M49: =MAX(M37:M48) -> 3.41 | N49: =AVERAGE(N37:N48) -> 0.7941666667 | O49: =MAX(O37:O48) -> 1.41
J51: =+A5 -> 2025 | K51: mg/Nm3 | L51: Monthly mean of half-hourly averages | M51: Highest half- hourly average | N51: Monthly mean of daily averages | O51: Highest daily average
J52: A4 | K52: Jan
K53: Feb
K54: Mar
K55: Apr
K56: May
K57: Jun
K58: Jul
K59: Aug
K60: Sep
K61: Oct
K62: Nov
K63: Dec
K64: Annual | L64: =AVERAGE(L52:L63) ->  | M64: =MAX(M52:M63) -> 0 | N64: =AVERAGE(N52:N63) ->  | O64: =MAX(O52:O63) -> 0
J66: =+A5 -> 2025 | K66: mg/Nm3 | L66: Monthly mean of half-hourly averages | M66: Highest half- hourly average | N66: Monthly mean of daily averages | O66: Highest daily average
J67: A5 | K67: Jan
K68: Feb
K69: Mar
K70: Apr
K71: May
K72: Jun
K73: Jul
K74: Aug
K75: Sep
K76: Oct
K77: Nov
K78: Dec
K79: Annual | L79: =AVERAGE(L67:L78) ->  | M79: =MAX(M67:M78) -> 0 | N79: =AVERAGE(N67:N78) ->  | O79: =MAX(O67:O78) -> 0

Sheet CO 0.5 hourly
A1: =+'Cover Page'!$B$29 -> Annual Performance Report 2025 | E1: =+'Cover Page'!$B$33 -> The CSWDC Waste to Energy Plant
A3: Monitoring of Carbon Monoxide (half hourly) | D3: Whole Installation | G3: See Notes in Cell Q3 | J3: =+A3 -> Monitoring of Carbon Monoxide (half hourly) | N3: Per Combustion Line | Q3: Notes:
A5: Please complete this tab for your plant if you have 1/2 hourly CO ELVs; otherwise, leave it blank and complete the CO 95% 10 min tab
Q7: User to add logic to complete Whole installation, Table A5:G18. From the data in Per Combustion Line, Table J6:O79, subject to No. of lines installed
A8: =+'Cover Page'!C39 -> 2025 | B8: 1/2 Hourly Reference Periods | E8: Daily Reference Periods
A9: mg/Nm3 | B9: 1/2 hourly CO ELV | C9: Monthly mean of half-hourly averages | D9: Highest half- hourly average | E9: Daily CO ELV | F9: Monthly mean of daily averages | G9: Highest daily average | J9: =+A8 -> 2025 | K9: mg/Nm3 | L9: Monthly mean of half-hourly averages | M9: Highest half- hourly average | N9: Monthly mean of daily averages | O9: Highest daily average
A10: Jan | B10: 100 | E10: 50 | J10: A1 | K10: Jan
A11: Feb | B11: =+B10 -> 100 | E11: =+E10 -> 50 | K11: Feb
A12: Mar | B12: =+B11 -> 100 | E12: =+E11 -> 50 | K12: Mar | Q12: Whole Installation table A5:G18:
A13: Apr | B13: 100 | E13: 50 | K13: Apr | Q13: Mean: for 1/2 hourly and daily periods calculate mean of values across all operational combustion lines for the month
A14: May | B14: 100 | E14: 50 | K14: May
A15: Jun | B15: 100 | E15: 50 | K15: Jun
A16: Jul | B16: 100 | E16: 50 | K16: Jul | Q16: Maximum: for 1/2 hourly and daily periods use the highest value across all operational combustion lines for the month
A17: Aug | B17: 100 | E17: 50 | K17: Aug
A18: Sep | B18: 100 | E18: 50 | K18: Sep
A19: Oct | B19: 100 | E19: 50 | K19: Oct
A20: Nov | B20: 100 | E20: 50 | K20: Nov
A21: Dec | B21: 100 | E21: 50 | K21: Dec
K22: Annual | L22: =AVERAGE(L10:L21) ->  | M22: =MAX(M10:M21) -> 0 | N22: =AVERAGE(N10:N21) ->  | O22: =MAX(O10:O21) -> 0
J24: =+A8 -> 2025 | K24: mg/Nm3 | L24: Monthly mean of half-hourly averages | M24: Highest half- hourly average | N24: Monthly mean of daily averages | O24: Highest daily average
J25: A2 | K25: Jan
K26: Feb
K27: Mar
K28: Apr
K29: May
K30: Jun
K31: Jul
K32: Aug
K33: Sep
K34: Oct
K35: Nov
K36: Dec
K37: Annual | L37: =AVERAGE(L25:L36) ->  | M37: =MAX(M25:M36) -> 0 | N37: =AVERAGE(N25:N36) ->  | O37: =MAX(O25:O36) -> 0
J39: =+A8 -> 2025 | K39: mg/Nm3 | L39: Monthly mean of half-hourly averages | M39: Highest half- hourly average | N39: Monthly mean of daily averages | O39: Highest daily average
J40: A3 | K40: Jan
K41: Feb
K42: Mar
K43: Apr
K44: May
K45: Jun
K46: Jul
K47: Aug
K48: Sep
K49: Oct
K50: Nov
A51: Comments : | K51: Dec
K52: Annual | L52: =AVERAGE(L40:L51) ->  | M52: =MAX(M40:M51) -> 0 | N52: =AVERAGE(N40:N51) ->  | O52: =MAX(O40:O51) -> 0
J54: =+A8 -> 2025 | K54: mg/Nm3 | L54: Monthly mean of half-hourly averages | M54: Highest half- hourly average | N54: Monthly mean of daily averages | O54: Highest daily average
J55: A4 | K55: Jan
K56: Feb
K57: Mar
K58: Apr
K59: May
K60: Jun
K61: Jul
K62: Aug
K63: Sep
K64: Oct
K65: Nov
K66: Dec
K67: Annual | L67: =AVERAGE(L55:L66) ->  | M67: =MAX(M55:M66) -> 0 | N67: =AVERAGE(N55:N66) ->  | O67: =MAX(O55:O66) -> 0
J69: =+A8 -> 2025 | K69: mg/Nm3 | L69: Monthly mean of half-hourly averages | M69: Highest half- hourly average | N69: Monthly mean of daily averages | O69: Highest daily average
J70: A5 | K70: Jan
K71: Feb
K72: Mar
K73: Apr
K74: May
K75: Jun
K76: Jul
K77: Aug
K78: Sep
K79: Oct
K80: Nov
K81: Dec
K82: Annual | L82: =AVERAGE(L70:L81) ->  | M82: =MAX(M70:M81) -> 0 | N82: =AVERAGE(N70:N81) ->  | O82: =MAX(O70:O81) -> 0

Sheet CO 95% 10 min
A1: =+'Cover Page'!$B$29 -> Annual Performance Report 2025 | E1: =+'Cover Page'!$B$33 -> The CSWDC Waste to Energy Plant
A3: Monitoring of Carbon Monoxide (10-minute avg) | E3: Whole Installation | H3: See Notes in Cell S3 | J3: =+A3 -> Monitoring of Carbon Monoxide (10-minute avg) | O3: Per Combustion Line | Q3: Notes: | S3: Notes:
A5: Please complete this tab for your plant if you have 10-minute average CO ELVs; otherwise, leave it blank and complete the CO 0.5 hourly tab
S7: User to add logic to complete Whole installation, Table A5:H18. From the data in Per Combustion Line, Table K6:Q79, subject to No. of lines installed
A8: =+'Cover Page'!C39 -> 2025 | B8: 10-minute Reference Periods | F8: Daily Reference Periods
A9: mg/Nm3 | B9: 95%ile 10-min avg CO ELV | C9: Highest daily 95%ile 10-min average | D9: Monthly mean of 10-min averages | E9: Highest 10-min average | F9: Daily CO ELV | G9: Monthly mean of daily averages | H9: Highest daily average | K9: =+A8 -> 2025 | L9: mg/Nm3 | M9: Highest daily 95%ile 10-min average | N9: Monthly mean of 10-min averages | O9: Highest 10-min average | P9: Monthly mean of daily averages | Q9: Highest daily average
A10: Jan | B10: 150 | C10: 94.5 | D10: 20.15 | E10: 434.45 | F10: 50 | G10: 19.99 | H10: 31.84 | K10: A1 | L10: Jan | M10: 44.51 | N10: 20.28 | O10: 231.72 | P10: 19.98 | Q10: 26.96
A11: Feb | B11: =+B10 -> 150 | C11: 68.63 | D11: 22 | E11: 431.4 | F11: =+F10 -> 50 | G11: 22.07 | H11: 39.81 | L11: Feb | M11: 65.15 | N11: 20.36 | O11: 431.4 | P11: 20.33 | Q11: 29.54
A12: Mar | B12: =+B11 -> 150 | C12: 109.42 | D12: 22.75 | E12: 439.32 | F12: =+F11 -> 50 | G12: 22.91 | H12: 39.64 | L12: Mar | M12: 109.42 | N12: 22.37 | O12: 164.25 | P12: 22.66 | Q12: 39.64 | S12: Whole Installation table A5:H18:
A13: Apr | B13: 150 | C13: 92.8 | D13: 19.89 | E13: 350.32 | F13: 50 | G13: 19.69 | H13: 41.63 | L13: Apr | M13: 36.35 | N13: 16.8 | O13: 281.77 | P13: 16.12 | Q13: 21.31 | S13: Mean: for 10-min and daily periods use average of all operational combustion lines.
A14: May | B14: 150 | C14: 100.65 | D14: 18.61 | E14: 314.15 | F14: 50 | G14: 18.58 | H14: 35.32 | L14: May | M14: 100.65 | N14: 18.73 | O14: 297.83 | P14: 18.63 | Q14: 35.32
A15: Jun | B15: 150 | C15: 93.59 | D15: 19.17 | E15: 436.13 | F15: 50 | G15: 18.91 | H15: 45.73 | L15: Jun | M15: 93.59 | N15: 24.36 | O15: 436.13 | P15: 24.04 | Q15: 45.73
A16: Jul | B16: 150 | C16: 52.43 | D16: 17.61 | E16: 264.93 | F16: 50 | G16: 17.59 | H16: 27.3 | L16: Jul | M16: 47.49 | N16: 20.47 | O16: 250.74 | P16: 20.47 | Q16: 27.3 | S16: Maximum: for 10-min and daily periods use the highest of all operational combustion lines in any month.
A17: Aug | B17: 150 | C17: 97.06 | D17: 21.31 | E17: 387.05 | F17: 50 | G17: 21.36 | H17: 30.5 | L17: Aug | M17: 97.06 | N17: 22.56 | O17: 329.56 | P17: 22.61 | Q17: 30.5
A18: Sep | B18: 150 | C18: 72.79 | D18: 22.34 | E18: 210.16 | F18: 50 | G18: 22.37 | H18: 35.7 | L18: Sep | M18: 49.42 | N18: 21.48 | O18: 147.62 | P18: 21.16 | Q18: 26.2
A19: Oct | B19: 150 | C19: 59.36 | D19: 19.31 | E19: 747.2 | F19: 50 | G19: 19.07 | H19: 28.36 | L19: Oct | M19: 54.33 | N19: 20.52 | O19: 233.48 | P19: 20.63 | Q19: 26.45
A20: Nov | B20: 150 | C20: 77 | D20: 22.52 | E20: 332.81 | F20: 50 | G20: 22.65 | H20: 38.77 | L20: Nov | M20: 62.51 | N20: 26.55 | O20: 332.81 | P20: 26.54 | Q20: 38.77
A21: Dec | B21: 150 | C21: 86.52 | D21: 22.62 | E21: 301.41 | F21: 50 | G21: 22.7 | H21: 33.58 | L21: Dec | M21: 60.44 | N21: 28.38 | O21: 301.41 | P21: 28.59 | Q21: 33.58
L22: Annual | M22: =AVERAGE(M10:M21) -> 68.41 | O22: =MAX(O10:O21) -> 436.13 | P22: =AVERAGE(P10:P21) -> 21.81333333 | Q22: =MAX(Q10:Q21) -> 45.73
K24: =+A8 -> 2025 | L24: mg/Nm3 | M24: Highest daily 95%ile 10-min average | N24: Monthly mean of 10-min averages | O24: Highest 10-min average | P24: Monthly mean of daily averages | Q24: Highest daily average
K25: A2 | L25: Jan | M25: 51.16 | N25: 18.21 | O25: 251.46 | P25: 18.2 | Q25: 26.41
L26: Feb | M26: 68.63 | N26: 25.3 | O26: 202.24 | P26: 25.32 | Q26: 39.81
L27: Mar | M27: 85.94 | N27: 27.11 | O27: 439.32 | P27: 27.14 | Q27: 37.44
L28: Apr | M28: 92.8 | N28: 21.39 | O28: 350.32 | P28: 21.13 | Q28: 41.63
L29: May | M29: 47.48 | N29: 15.47 | O29: 193.52 | P29: 15.47 | Q29: 19.86
L30: Jun | M30: 49.44 | N30: 17.26 | O30: 243.76 | P30: 17.03 | Q30: 22.64
L31: Jul | M31: 49.93 | N31: 15.74 | O31: 130.86 | P31: 15.75 | Q31: 21.09
L32: Aug | M32: 63.34 | N32: 21.67 | O32: 387.05 | P32: 21.83 | Q32: 29.29
L33: Sep | M33: 72.79 | N33: 25.45 | O33: 146.73 | P33: 25.47 | Q33: 35.7
L34: Oct | M34: 59.36 | N34: 19.54 | O34: 168.4 | P34: 19.61 | Q34: 28.36
L35: Nov | M35: 77 | N35: 21.79 | O35: 174.3 | P35: 21.78 | Q35: 31.43
L36: Dec | M36: 86.52 | N36: 20.17 | O36: 163.49 | P36: 20.18 | Q36: 31.15
L37: Annual | M37: =AVERAGE(M25:M36) -> 67.0325 | O37: =MAX(O25:O36) -> 439.32 | P37: =AVERAGE(P25:P36) -> 20.7425 | Q37: =MAX(Q25:Q36) -> 41.63
K39: =+A8 -> 2025 | L39: mg/Nm3 | M39: Highest daily 95%ile 10-min average | N39: Monthly mean of 10-min averages | O39: Highest 10-min average | P39: Monthly mean of daily averages | Q39: Highest daily average
K40: A3 | L40: Jan | M40: 94.5 | N40: 22.09 | O40: 434.45 | P40: 21.96 | Q40: 31.84
L41: Feb | M41: 57.11 | N41: 20.09 | O41: 296.61 | P41: 19.99 | Q41: 26.14
L42: Mar | M42: 46.65 | N42: 18.78 | O42: 194.73 | P42: 18.78 | Q42: 24.8
L43: Apr | M43: 44.3 | N43: 20.81 | O43: 235.04 | P43: 20.74 | Q43: 25.49
L44: May | M44: 38.34 | N44: 21.65 | O44: 314.15 | P44: 21.65 | Q44: 26.11
L45: Jun | M45: 40.08 | N45: 15.78 | O45: 272.93 | P45: 15.56 | Q45: 20.79
L46: Jul | M46: 52.43 | N46: 16.63 | O46: 264.93 | P46: 16.53 | Q46: 22.07
L47: Aug | M47: 41.37 | N47: 19.68 | O47: 312.26 | P47: 19.6 | Q47: 27.2
L48: Sep | M48: 34.21 | N48: 20.29 | O48: 210.16 | P48: 20.52 | Q48: 25.59
L49: Oct | M49: 40.34 | N49: 18.02 | O49: 747.2 | P49: 17.27 | Q49: 21.86
L50: Nov | M50: 35.83 | N50: 17.84 | O50: 298.96 | P50: 17.86 | Q50: 22.05
A51: Comments : | L51: Dec | M51: 46.81 | N51: 19.3 | O51: 294.12 | P51: 19.42 | Q51: 25.47
A52: Environment Agency explanatory note: The 10-minute average ELV is based on the “95th percentile”. In this case this means that 95% of the 10 minute averages in the relevant 24-hour period (i.e. 137) must be below 150 mg/Nm3, and 5% (i.e. 7) are allowed to be any value above 150 mg/Nm3. Whilst we expect operators to minimise CO emissions at all times, it is perfectly acceptable for the value of the maximum 10-minute average to be above 150 mg/Nm3, provided the 95th percentile ELV has been met for that period. | L52: Annual | M52: =AVERAGE(M40:M51) -> 47.66416667 | O52: =MAX(O40:O51) -> 747.2 | P52: =AVERAGE(P40:P51) -> 19.15666667 | Q52: =MAX(Q40:Q51) -> 31.84
K54: =+A8 -> 2025 | L54: mg/Nm3 | M54: Highest daily 95%ile 10-min average | N54: Monthly mean of 10-min averages | O54: Highest 10-min average | P54: Monthly mean of daily averages | Q54: Highest daily average
K55: A4 | L55: Jan
L56: Feb
L57: Mar
L58: Apr
L59: May
L60: Jun
L61: Jul
L62: Aug
L63: Sep
L64: Oct
L65: Nov
L66: Dec
L67: Annual | M67: =AVERAGE(M55:M66) ->  | O67: =MAX(O55:O66) -> 0 | P67: =AVERAGE(P55:P66) ->  | Q67: =MAX(Q55:Q66) -> 0
K69: =+A8 -> 2025 | L69: mg/Nm3 | M69: 95%ile 10-min avg maximum | N69: Monthly CO 10-min avg mean | O69: 10-min avg maximum | P69: Monthly daily mean | Q69: Monthly daily maximum
K70: A5 | L70: Jan
L71: Feb
L72: Mar
L73: Apr
L74: May
L75: Jun
L76: Jul
L77: Aug
L78: Sep
L79: Oct
L80: Nov
L81: Dec
L82: Annual | M82: =AVERAGE(M70:M81) ->  | O82: =MAX(O70:O81) -> 0 | P82: =AVERAGE(P70:P81) ->  | Q82: =MAX(Q70:Q81) -> 0

Sheet NH3
A1: =+'Cover Page'!$B$29 -> Annual Performance Report 2025 | E1: =+'Cover Page'!$B$33 -> The CSWDC Waste to Energy Plant
A3: Monitoring of Ammnonia emissions | D3: Whole Installation | G3: See Notes in Cell Q3 | J3: =+A3 -> Monitoring of Ammnonia emissions | N3: Per Combustion Line | Q3: Notes:
Q4: User to add logic to complete Whole installation, Table A5:G18. From the data in Per Combustion Line, Table J6:O79, subject to No. of lines installed
A5: =+'Cover Page'!C39 -> 2025 | B5: 1/2 Hourly Reference Periods | E5: Daily Reference Periods
A6: mg/Nm3 | B6: 1/2 hourly NH3 ELV | C6: Monthly mean of half-hourly averages | D6: Highest half- hourly average | E6: Daily NH3 ELV | F6: Monthly mean of daily averages | G6: Highest daily average | J6: =+A5 -> 2025 | K6: mg/Nm3 | L6: Monthly mean of half-hourly averages | M6: Highest half- hourly average | N6: Monthly mean of daily averages | O6: Highest daily average
A7: Jan | B7: None | C7: 6.04 | D7: 21.09 | E7: 15 | F7: 6.13 | G7: 12.26 | J7: A1 | K7: Jan | L7: 3.81 | M7: 9.46 | N7: 3.81 | O7: 5.6
A8: Feb | B8: =+B7 -> None | C8: 4.27 | D8: 15.74 | E8: 15 | F8: 4.28 | G8: 8.59 | K8: Feb | L8: 3.99 | M8: 9.1 | N8: 3.93 | O8: 4.89
A9: Mar | B9: =+B8 -> None | C9: 3.68 | D9: 10.33 | E9: 15 | F9: 3.68 | G9: 5.83 | K9: Mar | L9: 3.72 | M9: 9.98 | N9: 3.72 | O9: 4.99 | Q9: Whole Installation table A5:G18:
A10: Apr | B10: None | C10: 4.48 | D10: 16.2 | E10: 15 | F10: 4.52 | G10: 10.8 | K10: Apr | L10: 6.57 | M10: 16.2 | N10: 6.84 | O10: 10.8 | Q10: Mean: for 1/2 hourly and daily periods calculate mean of values across all operational combustion lines for the month
A11: May | B11: None | C11: 5.42 | D11: 17.59 | E11: 15 | F11: 5.41 | G11: 10.3 | K11: May | L11: 6.05 | M11: 17.59 | N11: 6.07 | O11: 8.69
A12: Jun | B12: None | C12: 6.18 | D12: 33.54 | E12: 15 | F12: 6.23 | G12: 12.1 | K12: Jun | L12: 8.02 | M12: 33.54 | N12: 8.11 | O12: 12.1
A13: Jul | B13: None | C13: 5.76 | D13: 18.78 | E13: 15 | F13: 5.78 | G13: 10.06 | K13: Jul | L13: 6.42 | M13: 14.47 | N13: 6.42 | O13: 10.06 | Q13: Maximum: for 1/2 hourly and daily periods use the highest value across all operational combustion lines for the month
A14: Aug | B14: None | C14: 4.49 | D14: 26.84 | E14: 15 | F14: 4.5 | G14: 8.41 | K14: Aug | L14: 5.92 | M14: 18.31 | N14: 5.93 | O14: 8.41
A15: Sep | B15: None | C15: 5.21 | D15: 15.15 | E15: 15 | F15: 5.22 | G15: 11.22 | K15: Sep | L15: 8.75 | M15: 15.15 | N15: 8.86 | O15: 11.22
A16: Oct | B16: None | C16: 5.91 | D16: 26.61 | E16: 15 | F16: 6.05 | G16: 10.26 | K16: Oct | L16: 5.72 | M16: 26.61 | N16: 5.93 | O16: 10.26
A17: Nov | B17: None | C17: 6.36 | D17: 20.34 | E17: 15 | F17: 6.43 | G17: 12.87 | K17: Nov | L17: 8.24 | M17: 20.34 | N17: 8.25 | O17: 12.87
A18: Dec | B18: None | C18: 5.28 | D18: 20.96 | E18: 15 | F18: 5.29 | G18: 7.68 | K18: Dec | L18: 6.06 | M18: 15.09 | N18: 6.06 | O18: 7.68
K19: Annual | L19: =AVERAGE(L7:L18) -> 6.105833333 | M19: =MAX(M7:M18) -> 33.54 | N19: =AVERAGE(N7:N18) -> 6.160833333 | O19: =MAX(O7:O18) -> 12.87
J21: =+A5 -> 2025 | K21: mg/Nm3 | L21: Monthly mean of half-hourly averages | M21: Highest half- hourly average | N21: Monthly mean of daily averages | O21: Highest daily average
J22: A2 | K22: Jan | L22: 8.79 | M22: 19.75 | N22: 8.79 | O22: 12.26
K23: Feb | L23: 4.63 | M23: 12.42 | N23: 4.62 | O23: 8.59
K24: Mar | L24: 3.5 | M24: 10.16 | N24: 3.51 | O24: 5.17
K25: Apr | L25: 4.63 | M25: 14.27 | N25: 4.69 | O25: 8.01
K26: May | L26: 7.05 | M26: 13.41 | N26: 7.05 | O26: 10.3
K27: Jun | L27: 5.41 | M27: 16.62 | N27: 5.45 | O27: 10.05
K28: Jul | L28: 6.18 | M28: 18.78 | N28: 6.18 | O28: 7.57
K29: Aug | L29: 4.98 | M29: 26.84 | N29: 4.99 | O29: 7.99
K30: Sep | L30: 3.5 | M30: 8.65 | N30: 3.5 | O30: 5.82
K31: Oct | L31: 6.69 | M31: 11.95 | N31: 6.8 | O31: 7.89
K32: Nov | L32: 5.65 | M32: 12.71 | N32: 5.65 | O32: 8.22
K33: Dec | L33: 5.05 | M33: 19.86 | N33: 5.05 | O33: 7.08
K34: Annual | L34: =AVERAGE(L22:L33) -> 5.505 | M34: =MAX(M22:M33) -> 26.84 | N34: =AVERAGE(N22:N33) -> 5.523333333 | O34: =MAX(O22:O33) -> 12.26
J36: =+A5 -> 2025 | K36: mg/Nm3 | L36: Monthly mean of half-hourly averages | M36: Highest half- hourly average | N36: Monthly mean of daily averages | O36: Highest daily average
J37: A3 | K37: Jan | L37: 5.06 | M37: 21.09 | N37: 4.96 | O37: 11.56
K38: Feb | L38: 4.15 | M38: 15.74 | N38: 4.2 | O38: 6.29
K39: Mar | L39: 3.82 | M39: 10.33 | N39: 3.81 | O39: 5.83
K40: Apr | L40: 2.95 | M40: 10.93 | N40: 2.93 | O40: 4.98
K41: May | L41: 3.16 | M41: 12.89 | N41: 3.16 | O41: 5.88
K42: Jun | L42: 5.12 | M42: 10.02 | N42: 5.14 | O42: 7.48
K43: Jul | L43: 4.66 | M43: 9.64 | N43: 4.7 | O43: 5.95
K44: Aug | L44: 2.53 | M44: 20.57 | N44: 2.52 | O44: 4.62
K45: Sep | L45: 3.6 | M45: 8.45 | N45: 3.67 | O45: 5.33
K46: Oct | L46: 5.47 | M46: 11.57 | N46: 5.57 | O46: 7.83
K47: Nov | L47: 4.71 | M47: 14.53 | N47: 4.82 | O47: 6.17
A48: Comments : | K48: Dec | L48: 4.73 | M48: 20.96 | N48: 4.76 | O48: 6.79
A49: An indicated ELV value of zero in the table above means that no ammonia limit is/was set in the permit. | K49: Annual | L49: =AVERAGE(L37:L48) -> 4.163333333 | M49: =MAX(M37:M48) -> 21.09 | N49: =AVERAGE(N37:N48) -> 4.186666667 | O49: =MAX(O37:O48) -> 11.56
J51: =+A5 -> 2025 | K51: mg/Nm3 | L51: Monthly mean of half-hourly averages | M51: Highest half- hourly average | N51: Monthly mean of daily averages | O51: Highest daily average
J52: A4 | K52: Jan
K53: Feb
K54: Mar
K55: Apr
K56: May
K57: Jun
K58: Jul
K59: Aug
K60: Sep
K61: Oct
K62: Nov
K63: Dec
K64: Annual | L64: =AVERAGE(L52:L63) ->  | M64: =MAX(M52:M63) -> 0 | N64: =AVERAGE(N52:N63) ->  | O64: =MAX(O52:O63) -> 0
J66: =+A5 -> 2025 | K66: mg/Nm3 | L66: Monthly mean of half-hourly averages | M66: Highest half- hourly average | N66: Monthly mean of daily averages | O66: Highest daily average
J67: A5 | K67: Jan
K68: Feb
K69: Mar
K70: Apr
K71: May
K72: Jun
K73: Jul
K74: Aug
K75: Sep
K76: Oct
K77: Nov
K78: Dec
K79: Annual | L79: =AVERAGE(L67:L78) ->  | M79: =MAX(M67:M78) -> 0 | N79: =AVERAGE(N67:N78) ->  | O79: =MAX(O67:O78) -> 0

Sheet Template changes log
A1: Log of changes to template (Environment Agency use only)
A3: Date | B3: Description of change | C3: New version number and date
A4: 2024-01-16 | B4: Air (periodic) tab: corrected default O2 reference from 6 to 11% | C4: Version 23.5a (for incinerators) - 16/01/2024
A5: 2024-09-23 | B5: Air (periodic) tab: corrected symbol for Thallium to Tl
A6: 2024-09-23 | B6: Air (periodic) tab: removed last year's references to different emission limit values applying from 03/12/23 and updated all relevant ELVs
A7: 2024-09-23 | B7: Tabs for continuously monitored pollutants (HCl, SO2 etc.): changed terminology in table headings to improve clarity
A8: 2024-09-23 | B8: Tabs for continuously monitored pollutants (HCl, SO2 etc.): removed last year's references to different emission limit values applying from 03/12/23 and updated all relevant ELVs
A9: 2024-09-23 | B9: Perf 1 tab: updated formula for water usage to report m3 rather than litres and corrected error with formula copying operator name
A10: 2024-09-23 | B10: Operational Summary tab: table added on start-ups and shut-downs
A11: 2024-09-23 | B11: Operational Summary tab: table added on dioxins and mercury protocols
A12: 2024-09-23 | B12: Operational Summary tab: table added on AST, QAL 2 and calibration functions
A13: 2024-09-23 | B13: CO2 N2O tab: various changes made to notes to reflect the fact that most plants should now have calibrated CEMS and flow meters + some have C14 samplers and more up to date industry data | C13: Version 24a (for incinerators) - 23/09/24
A14: 2024-11-08 | B14: CO2 N2O tab: Changed the N2O CO2 equivalence factor from 298 to 265 in line with recently updated government greenhouse gas figures: https://www.gov.uk/government/publications/greenhouse-gas-reporting-conversion-factors-2024
A15: 2024-11-08 | B15: CO2 N2O tab: Added an additional requirement for municipal EfW plants to state the yearly average biogenic percentage of the waste by mass, and reference to a document which sets out a methodology for calculating NCV of waste from the results of C14 sampling.
A16: 2024-11-08 | B16: Permit Compliance tab: Two additional columns added + explanatory notes to the table entitled "Summary of non-compliances under the permit" to allow CCS scores to be stated where relevant.
A17: 2024-11-08 | B17: Residue Quality tab: Note added explaining application of TOC and LOI limits and asking operators to report both metrics where measured. | C17: Version 24.1a (for incinerators) - 08/11/24
A18: 2024-11-27 | B18: Operational Summary tab: table added on start-ups and shut-downs | C18: Version 24.2a (for incinerators) - 27/11/24
A19: 2025-11-27 | B19: Cover Page: Print as PDF and Print Report and pdf buttons deleted and blank columns removed; contents page deleted | C19: Version 25.1a (for incinerators) - 27/11/25
A20: 2025-11-27 | B20: Residue Quality tab renamed to "Residues", and Summary of residue handling table moved from Operational Summary tab to Residues tab.
A21: 2025-11-27 | B21: Various changes made to the Operational Data tab including • Reformatting of the rows under the Operational data heading (Rows 3-8) to make it clearer what information is required. • Amendment of the rows under the Energy Usage / Export heading (Rows 26-32) to calculate an “indicative parasitic load” (now excluding energy imported) • Amendment of the unit for gas usage from cubic feet to cubic metres (Row 50) • Some amendments to the first 2 notes and other minor edits • Deleted "Overall Availability, mean avg. of all lines, hrs" row
A22: 2025-11-27 | B22: Operational Summary tab: Note added requiring all emergency shut-downs be listed, irrespective of whether or not they were reportable.
A23: 2025-11-27 | B23: CO2 N2O tab: Note added to ask operators to ensure that relevant data reported here matches that which will be submitted under the Pollution Inventory
